Workbook

Sheet FEGL_MASTER
A1: 220 | B1: Team No. 1 | C1: Quota | D1: Phone | E1: E-Mail | F1: Member | G1: 1 | H1: 2 | I1: 3 | J1: 4 | K1: 5 | L1: 6 | M1: 7 | N1: 8 | O1: 9 | P1: 10
A2: 221 | B2: Danny Vrla | C2: =IF(ROUND(AVERAGE(G2:T2),0) < 9,9,(IF(ROUND(AVERAGE(G2:T2),0) > 25,25,ROUND(AVERAGE(G2:T2),0)))) -> 22 | D2: 21990 | E2: danny.e.vrla@lmco.com | F2: Yes | G2: 24 | H2: 20 | I2: 23 | J2: 23 | L2: 22 | N2: 21 | O2: 22
A3: 222 | B3: Dick Miller | C3: 22 | D3: 54632 | E3: dick.a.miller@lmco.com | F3: No | G3: 22 | H3: 23 | R3: 21 | S3: 21 | T3: 21
A4: 223 | B4: Charlie Bean | C4: =IF(ROUND(AVERAGE(G4:T4),0) < 9,9,(IF(ROUND(AVERAGE(G4:T4),0) > 25,25,ROUND(AVERAGE(G4:T4),0)))) -> 25 | D4: 54613 | E4: william.c.bean.jr@lmco.com | F4: No | G4: 30 | H4: 25 | I4: 26 | J4: 24 | L4: 29 | N4: 23 | O4: 27
A5: 224 | B5: Bryan Goble | C5: 15 | G5: 10 | I5: 18 | J5: 15 | L5: 15 | N5: 15 | O5: 19
A6: 225 | B6: Rod Newberry | C6: 20 | H6: 18 | I6: 18 | J6: 21 | L6: 20 | N6: 22
A7: 226
A8: 227
A9: 228 | C9: =SUM(C2:C8)/5 -> 20.8
A10: 300 | B10: Team No. 2 | C10: Quota | D10: Phone | E10: E-Mail | F10: Member
A11: 301 | B11: Bill Blackwell | C11: =IF(ROUND(AVERAGE(G11:T11),0) < 9,9,(IF(ROUND(AVERAGE(G11:T11),0) > 25,25,ROUND(AVERAGE(G11:T11),0)))) -> 25 | D11: 300-4915 | E11: billblackwell@sbcglobal.net | F11: B136 | G11: 29 | H11: 23 | I11: 27 | J11: 23 | N11: 24 | O11: 26
A12: 302 | B12: Tom Schlueter | C12: 24 | D12: 713-8664 | E12: tomeschlueter@yahoo.com | F12: No | G12: 25 | H12: 25 | I12: 24 | J12: 23 | L12: 23 | N12: 24 | O12: 27
A13: 303 | B13: Scott Howell | C13: 23 | D13: 565-9229 | E13: scott.howell@lmco.com | F13: H6 | H13: 22 | I13: 24 | J13: 22 | L13: 21 | O13: 26
A14: 304 | B14: Greg Byrnes | C14: 24 | D14: 233-3340 | E14: greg.j.byrnes@lmco.com | F14: B003 | G14: 22 | H14: 24 | L14: 24 | O14: 25 | T14: 23
A15: 305 | B15: Marylou Anderson | C15: 18 | E15: mirrikat@aol.com | F15: No | Q15: 18 | R15: 18 | S15: 18 | T15: 18
A16: 306 | B16: Susan Blackwell | C16: 16 | D16: 871-689-5606 | E16: susan60girl@sbcglobal.net | F16: B136F1 | G16: 11 | I16: 15 | J16: 17 | L16: 18 | N16: 17
A17: 307
C18: =SUM(C11:C17)/6 -> 21.66666667
A19: 200 | B19: Team No. 3 | C19: Quota | D19: Phone | E19: E-Mail | F19: Member
A20: 201 | B20: Craig Treece | C20: =IF(ROUND(AVERAGE(G20:T20),0) < 9,9,(IF(ROUND(AVERAGE(G20:T20),0) > 25,25,ROUND(AVERAGE(G20:T20),0)))) -> 18 | D20: 988-4895 | E20: craig.s.treece@lmco.com | F20: T18 | G20: 15 | H20: 12 | I20: 20 | L20: 21 | N20: 18 | O20: 19
A21: 202 | B21: Terry Hay | C21: =IF(ROUND(AVERAGE(G21:T21),0) < 9,9,(IF(ROUND(AVERAGE(G21:T21),0) > 25,25,ROUND(AVERAGE(G21:T21),0)))) -> 18 | D21: 925-5064 | E21: tkjahay@sbcglobal.net | H21: 17 | J21: 20 | N21: 20 | S21: 16 | T21: 16
A22: 203 | B22: Scott Rudin | C22: 22 | D22: 31068 | E22: scott.a.rudin@lmco.com | F22: No | G22: 21 | H22: 19 | I22: 24 | J22: 24 | L22: 22 | N22: 21 | O22: 25
A23: 204 | B23: Peter Stanfill | C23: 20 | D23: 54705 | E23: Peter.O.Stanfill@lmco.com | F23: Yes | G23: 21 | I23: 20 | J23: 21 | L23: 17 | T23: 22
A24: 205 | B24: Greg Larson | C24: 20 | D24: 734-9807 | E24: glarson423@gmail.com | F24: Yes | G24: 22 | H24: 19 | J24: 20 | L24: 23 | N24: 17
A25: 206
A26: 207
C27: =SUM(C20:C26)/5 -> 19.6
A28: 260 | B28: Team No. 4 | C28: Quota | D28: Phone | E28: E-Mail | F28: Member
A29: 261 | B29: Roy Mayes | C29: =IF(ROUND(AVERAGE(G29:T29),0) < 9,9,(IF(ROUND(AVERAGE(G29:T29),0) > 25,25,ROUND(AVERAGE(G29:T29),0)))) -> 18 | D29: 980-5175 | E29: roy.a.mayes@charter.net | F29: No | G29: 19 | H29: 17 | I29: 21 | J29: 15 | L29: 18 | N29: 20
A30: 262 | B30: Steve Burre | C30: =IF(ROUND(AVERAGE(G30:T30),0) < 9,9,(IF(ROUND(AVERAGE(G30:T30),0) > 25,25,ROUND(AVERAGE(G30:T30),0)))) -> 19 | E30: steve.p.burre@lmco.com | F30: B62 | G30: 20 | H30: 18 | I30: 19 | J30: 19 | L30: 16 | N30: 19 | O30: 25
A31: 263 | B31: Paul Parker | C31: =IF(ROUND(AVERAGE(G31:T31),0) < 9,9,(IF(ROUND(AVERAGE(G31:T31),0) > 25,25,ROUND(AVERAGE(G31:T31),0)))) -> 21 | F31: No | G31: 21 | H31: 20 | L31: 19 | N31: 23 | O31: 23
A32: 264 | B32: Paul Loken | C32: =IF(ROUND(AVERAGE(G32:T32),0) < 9,9,(IF(ROUND(AVERAGE(G32:T32),0) > 25,25,ROUND(AVERAGE(G32:T32),0)))) -> 20 | F32: No | G32: 20 | H32: 22 | I32: 24 | J32: 18 | L32: 17 | N32: 19 | O32: 20
A33: 265 | B33: Richard Rutledge | C33: =IF(ROUND(AVERAGE(G33:T33),0) < 9,9,(IF(ROUND(AVERAGE(G33:T33),0) > 25,25,ROUND(AVERAGE(G33:T33),0)))) -> 13 | I33: 13 | J33: 10 | O33: 15
A34: 266
A35: 267
C36: =SUM(C29:C35)/5 -> 18.2
A37: 280 | B37: Team No. 5 | C37: Quota | D37: Phone | E37: E-Mail | F37: Member
A38: 281 | B38: Carl Jettun | C38: =IF(ROUND(AVERAGE(G38:T38),0) < 9,9,(IF(ROUND(AVERAGE(G38:T38),0) > 25,25,ROUND(AVERAGE(G38:T38),0)))) -> 18 | D38: 76907 | E38: carl.w.jettun@lmco.com | F38: No | H38: 14 | I38: 21 | R38: 18 | S38: 18 | T38: 18
A39: 282 | B39: Terry Williams | C39: 19 | G39: 22 | H39: 17 | J39: 16 | L39: 16 | N39: 19 | O39: 23
A40: 283 | B40: Ron Garvin | C40: 22 | G40: 19 | I40: 25 | L40: 18 | N40: 22 | O40: 25
A41: 284 | B41: Danny Uselton | C41: 19 | D41: 77295 | E41: danny.p.uselton@lmco.com | F41: Yes | G41: 16 | H41: 17 | I41: 18 | J41: 18 | N41: 24 | O41: 21
A42: 285 | B42: Lane Massie | C42: 25 | D42: 77640 | F42: M10 | G42: 27 | I42: 26 | J42: 25 | L42: 22 | T42: 25
A43: 286 | B43: Susan Ethetton | C43: 9 | D43: 58068 | H43: 7 | J43: 6 | L43: 4 | N43: 8 | O43: 6
A44: 287
C45: =SUM(C38:C44)/6 -> 18.66666667
A46: 250 | B46: Team No. 6 | C46: Quota | D46: Phone | E46: E-Mail | F46: Member
A47: 251 | B47: Chris Sell | C47: =IF(ROUND(AVERAGE(G47:T47),0) < 9,9,(IF(ROUND(AVERAGE(G47:T47),0) > 25,25,ROUND(AVERAGE(G47:T47),0)))) -> 23 | D47: 32476 | E47: chris.j.sell@lmco.com | F47: S45 | G47: 18 | H47: 25 | I47: 25 | L47: 22 | N47: 25 | O47: 25
A48: 252 | B48: James Kilpatrick | C48: 15 | D48: 584-7449 | E48: kilpajf@att.net | F48: no | I48: 18 | J48: 14 | N48: 18 | O48: 11
A49: 253 | B49: Sharon Scharbach | C49: 9 | D49: 682-225-3586 | E49: Sharon.l.scharbach | L49: 3
A50: 254 | B50: Frank Gallison | C50: 21 | D50: 75273 | E50: frank.s.gallison@lmco.com | F50: G45 | G50: 25 | H50: 22 | I50: 15 | J50: 20 | L50: 21 | N50: 20 | O50: 26
A51: 256 | B51: Joe Revay | C51: 18 | D51: 58921 | E51: joe.revay@lmco.com | F51: R24 | G51: 19 | H51: 18 | I51: 15 | J51: 20 | L51: 14 | N51: 17 | O51: 20
A52: 257 | B52: Tom Imboden | C52: 17 | G52: 18 | H52: 11 | J52: 14 | N52: 17 | O52: 23
C54: =SUM(C47:C53)/6 -> 17.16666667
A55: 270 | B55: Team No. 7 | C55: Quota | D55: Phone | E55: E-Mail | F55: Member
A56: 271 | B56: Mike Kimble | C56: =IF(ROUND(AVERAGE(G56:T56),0) < 9,9,(IF(ROUND(AVERAGE(G56:T56),0) > 25,25,ROUND(AVERAGE(G56:T56),0)))) -> 23 | D56: 797-7889 | E56: maad98@yahoo.com | F56: No | H56: 22 | I56: 23 | J56: 20 | L56: 21 | N56: 24 | O56: 27
A57: 272 | B57: Duane Casey | C57: 17 | D57: 77924 | E57: duane.casey@lmco.com | F57: C11 | G57: 18 | H57: 18 | I57: 22 | J57: 11 | L57: 20 | N57: 16 | O57: 16
A58: 273 | B58: Chris Tarpley | C58: =IF(ROUND(AVERAGE(G58:T58),0) < 9,9,(IF(ROUND(AVERAGE(G58:T58),0) > 25,25,ROUND(AVERAGE(G58:T58),0)))) -> 22 | G58: 23 | H58: 26 | R58: 21 | S58: 21 | T58: 21
A59: 274 | B59: Bob Madewell | C59: 15 | E59: bob.a.madewell@lmco.com | G59: 14 | H59: 16 | I59: 21 | J59: 7 | L59: 17 | N59: 19 | O59: 13
A60: 275 | B60: Dave Watson | C60: 19 | I60: 19 | J60: 20 | L60: 20 | N60: 17 | O60: 19
A61: 276
A62: 277
C63: =SUM(C56:C62)/5 -> 19.2
A64: 210 | B64: Team No. 8 | C64: Quota | D64: Phone | E64: E-Mail | F64: Member
A65: 211 | B65: Dennis McBrayer | C65: =IF(ROUND(AVERAGE(G65:T65),0) < 9,9,(IF(ROUND(AVERAGE(G65:T65),0) > 25,25,ROUND(AVERAGE(G65:T65),0)))) -> 17 | D65: 73500 | E65: dennis.l.mcbrayer@gmail.com | G65: 19 | H65: 13 | O65: 20 | S65: 16 | T65: 16
A66: 211 | B66: Mark Melanson | C66: 21 | D66: 31760 | E66: mark.r.melanson@lmco.com | F66: M120 | G66: 22 | I66: 19 | N66: 24 | S66: 19 | T66: 19
A67: 212 | B67: Kelly Whitfield | C67: 23 | D67: 33607 | E67: kelly.e.whitfield@lmco.com | F67: W14 | H67: 21 | I67: 26 | J67: 21 | L67: 27 | N67: 20 | O67: 22
A68: 213 | B68: Jim Norris | C68: 19 | D68: 71600 | E68: James.p.norris@lmco.com | F68: N11 | G68: 19 | H68: 16 | I68: 23 | J68: 16 | L68: 18 | N68: 21
A69: 214 | B69: Bill Margolis | C69: 13 | D69: 76214 | E69: Bill.margolis@lmco.com | F69: M145 | Q69: 13 | R69: 13 | S69: 13 | T69: 13
A70: 215 | B70: Steven Floyd | C70: 19 | G70: 18 | I70: 22 | J70: 15 | L70: 16 | O70: 22
B71: Dan Lawrence | C71: 24 | H71: 26 | I71: 22 | L71: 24 | N71: 22
C72: =SUM(C65:C71)/7 -> 19.42857143
A73: 60 | B73: Team No. 9 | C73: Quota | D73: Phone | E73: E-Mail | F73: M. Z.
A74: 61 | B74: David Miley | C74: =IF(ROUND(AVERAGE(G74:T74),0) < 9,9,(IF(ROUND(AVERAGE(G74:T74),0) > 25,25,ROUND(AVERAGE(G74:T74),0)))) -> 14 | D74: 319-6593 | E74: david@themileys.net | H74: 16 | I74: 12 | J74: 12 | L74: 17 | N74: 12
A75: 62 | B75: Butch Morrison | C75: 13 | E75: butcher0412@hotmail.com | L75: 12 | N75: 12 | O75: 15
A76: 63 | B76: Bruce Pruitt | C76: 13 | D76: 53290 | E76: bruce.e.pruitt@lmco.com | G76: 11 | I76: 9 | J76: 15 | L76: 16 | O76: 15
A77: 64 | B77: Tony Wedgeworth | C77: 21 | D77: 925-8492 | E77: tonywedgeworth@gmail.com | G77: 25 | H77: 19 | I77: 15 | J77: 23 | L77: 20 | N77: 22 | O77: 22
A78: 65 | B78: Josh Lewis | C78: =IF(ROUND(AVERAGE(G78:T78),0) < 9,9,(IF(ROUND(AVERAGE(G78:T78),0) > 25,25,ROUND(AVERAGE(G78:T78),0)))) -> 17 | D78: 935-3370 | E78: joshua.b.lewis@lmco.com | G78: 24 | H78: 16 | J78: 16 | O78: 15 | T78: 14
A79: 66 | B79: Rowdy Yates | C79: =IF(ROUND(AVERAGE(G79:T79),0) < 9,9,(IF(ROUND(AVERAGE(G79:T79),0) > 25,25,ROUND(AVERAGE(G79:T79),0)))) -> 11 | E79: robert.l.yates@lmco.com | G79: 13 | I79: 8 | L79: 14 | N79: 12 | O79: 8
C81: =SUM(C74:C80)/6 -> 14.83333333
A82: 190 | B82: Team No. 10 | C82: Quota | D82: Phone | E82: E-Mail | F82: Member
A83: 191 | B83: Frankie Kubenka | C83: =IF(ROUND(AVERAGE(G83:T83),0) < 9,9,(IF(ROUND(AVERAGE(G83:T83),0) > 25,25,ROUND(AVERAGE(G83:T83),0)))) -> 16 | D83: 76021 | E83: frankie.j.kubenka@lmco.com | F83: K-17 | G83: 9 | H83: 20 | I83: 17 | J83: 21 | L83: 16 | N83: 12 | O83: 18
A84: 192 | B84: Marty James | D84: 71492 | F84: Yes
A85: 193 | B85: Oliver Benfer | C85: 13 | D85: 71492 | E85: oliver.w.benfer@lmco.com | F85: Yes | G85: 13 | H85: 13 | I85: 10 | J85: 13 | N85: 12 | O85: 16
A86: 194 | B86: Tom Marrs | C86: 14 | F86: No | Q86: 14 | R86: 14 | S86: 14 | T86: 14
A87: 195 | B87: Louis Gonzalez | C87: 19 | F87: G8 | G87: 19 | H87: 18 | J87: 17 | L87: 20 | N87: 18 | O87: 22
A88: 196 | B88: J R Martinez | C88: 15 | Q88: 15 | R88: 15 | S88: 15 | T88: 15
A89: 197 | B89: Joe Edmiston | C89: 14 | G89: 12 | H89: 13 | I89: 16 | J89: 18 | L89: 15 | O89: 11
C90: =SUM(C83:C89)/7 -> 
A91: 110 | B91: Team No. 11 | C91: Quota | D91: Phone | E91: E-Mail | F91: Member
A92: 111 | B92: David Ayrault | C92: =IF(ROUND(AVERAGE(G92:T92),0) < 9,9,(IF(ROUND(AVERAGE(G92:T92),0) > 25,25,ROUND(AVERAGE(G92:T92),0)))) -> 16 | D92: 23121 | E92: david.j.ayrault@lmco.com | F92: A23 | G92: 18 | H92: 12 | I92: 20 | J92: 12 | L92: 20 | N92: 12 | O92: 21
A93: 112 | B93: Rick Ellis | C93: 15 | D93: 75252 | E93: rick.a.ellis@lmco.com | F93: No | G93: 17 | H93: 14 | I93: 18 | L93: 10 | O93: 18
A94: 113 | B94: Steve Matney | C94: 18 | D94: 935-4435 | E94: stephen.d.matney@lmco.com | F94: yes | G94: 19 | H94: 17 | I94: 20 | J94: 18 | L94: 21 | N94: 13
A95: 114 | B95: Stewart Coley | C95: 20 | E95: stewart.coley@gmail.com | F95: No | G95: 17 | H95: 17 | J95: 23 | S95: 21 | T95: 21
A96: 115 | B96: Mitch Kaarlela | D96: 53486 | E96: mitchell.l.kaarlela@lmco.com | F96: No
A97: 116 | B97: Rick Lang | C97: 19 | E97: rjlang1949@gmail.com | F97: No | G97: 13 | H97: 18 | J97: 17 | L97: 19 | N97: 21 | O97: 26
A98: 117 | B98: Billy Coyle | C98: 18 | D98: 74951 | F98: No | I98: 17 | J98: 24 | N98: 22 | O98: 13 | T98: 16
C99: =SUM(C92:C98)/6 -> 
A100: 140 | B100: Team No. 12 | C100: Quota | D100: Phone | E100: E-Mail | F100: Member
A101: 141 | B101: Jason DeLong | C101: =IF(ROUND(AVERAGE(G101:T101),0) < 9,9,(IF(ROUND(AVERAGE(G101:T101),0) > 25,25,ROUND(AVERAGE(G101:T101),0)))) -> 25 | D101: 903-275-9026 | E101: jason.l.delong@lmco.com | G101: 25 | H101: 24 | I101: 25 | J101: 25 | L101: 26 | N101: 24 | O101: 27
A102: 142 | B102: Travis Libby | C102: 16 | D102: 944-5610 | G102: 15 | H102: 18 | I102: 12 | L102: 17 | O102: 17
A103: 143 | B103: Aaron Corby | C103: 18 | D103: 713-6661 | H103: 17 | I103: 16 | J103: 17 | L103: 18 | N103: 21 | O103: 20
A104: 144 | B104: Kyle Bottom | C104: 20 | D104: 805-3307 | G104: 18 | H104: 19 | I104: 19 | J104: 24 | L104: 19 | N104: 20 | O104: 22
A105: 145 | B105: Brad Dittmar | C105: =IF(ROUND(AVERAGE(F105:T105),0) < 9,9,(IF(ROUND(AVERAGE(F105:T105),0) > 25,25,ROUND(AVERAGE(F105:T105),0)))) -> 20 | T105: 20
A106: 146
C108: =SUM(C101:C107)/5 -> 19.8
A109: 40 | B109: Team No. 13 | C109: Quota | D109: Phone | E109: E-Mail | F109: Member
A110: 41 | B110: Charlie Lambert | C110: =IF(ROUND(AVERAGE(G110:T110),0) < 9,9,(IF(ROUND(AVERAGE(G110:T110),0) > 25,25,ROUND(AVERAGE(G110:T110),0)))) -> 15 | D110: 675-7505 | E110: charlielambert@charter.net | F110: L31 | G110: 15 | H110: 19 | I110: 15 | J110: 14 | L110: 16 | N110: 14 | O110: 10
A111: 42 | B111: DeWayne Cox | C111: 20 | D111: 798-8872 | E111: dewaynecox@uwmail.com | G111: 16 | H111: 21 | I111: 24 | J111: 14 | L111: 25 | N111: 20 | O111: 18
A112: 43 | B112: Joe Andrews | C112: 15 | D112: 935-3499 | E112: joe.e.andrews@lmco.com | F112: A67 | G112: 13 | H112: 11 | I112: 11 | J112: 13 | L112: 18 | N112: 17 | O112: 20
A113: 44 | B113: Dan Longeway | C113: 16 | D113: 229-7058 | E113: dan.comxx@charter.net | Q113: 16 | R113: 16 | S113: 16 | T113: 16
A114: 46 | B114: Cheryl Lambert | C114: =IF(ROUND(AVERAGE(G114:T114),0) < 9,9,(IF(ROUND(AVERAGE(G114:T114),0) > 25,25,ROUND(AVERAGE(G114:T114),0)))) -> 9 | E114: cheryl.lambert@lmco.com | F114: L31F1 | G114: 6 | H114: 8 | I114: 11 | J114: 8 | L114: 5 | N114: 4 | O114: 15
A115: 47
A116: 47
C117: =SUM(C110:C116)/5 -> 15
A118: 170 | B118: Team No. 14 | C118: Quota | D118: Phone | E118: E-Mail | F118: Member
A119: 171 | B119: Bob Bienski | C119: =IF(ROUND(AVERAGE(G119:T119),0) < 9,9,(IF(ROUND(AVERAGE(G119:T119),0) > 25,25,ROUND(AVERAGE(G119:T119),0)))) -> 20 | D119: 521-8043 | E119: bobbybienski@gmail.com | F119: B144 | O119: 23 | Q119: 19 | R119: 19 | S119: 19 | T119: 19
A120: 172 | B120: James Barkelew | C120: 17 | D120: 77918 | E120: James.H.Barkelew@lmco.com | G120: 13 | H120: 19 | I120: 20 | J120: 15 | L120: 17 | N120: 19 | O120: 16
A121: 173 | B121: Wayne Maddox | C121: 18 | D121: 560-7323 | E121: waymad@juno.com | F121: M49 | G121: 15 | J121: 18 | L121: 19 | N121: 21 | O121: 15
A122: 174 | B122: Jack Young | C122: 12 | D122: 79770 | E122: jack.b.young@lmco.com | F122: N | G122: 16 | H122: 11 | I122: 12 | J122: 7 | L122: 10 | N122: 13
A123: 175 | B123: Jorge Cornejo | C123: 12 | D123: 77562 | E123: Jorge.W.Cornejo@lmco.com | F123: C126 | I123: 11 | J123: 12 | L123: 10 | S123: 14 | T123: 14
A124: 176 | B124: Garnett Andrews | C124: 9 | D124: 23664 | E124: garnett.andrews@lmco.com | F124: N | Q124: 9 | R124: 9 | S124: 9 | T124: 9
A125: 176 | B125: Jerry Burns | C125: 15 | E125: jerry.a.burns@lmco.com | H125: 13 | I125: 14 | O125: 19
C126: =SUM(C119:C125)/7 -> 14.71428571
A127: 130 | B127: Team No. 15 | C127: Quota | D127: Phone | E127: E-Mail | F127: Member
A128: 131 | B128: Dave Utech | C128: =IF(ROUND(AVERAGE(G128:T128),0) < 9,9,(IF(ROUND(AVERAGE(G128:T128),0) > 25,25,ROUND(AVERAGE(G128:T128),0)))) -> 11 | D128: 53074 | E128: david.b.utech@lmco.com | F128: No | G128: 13 | H128: 12 | J128: 9 | L128: 13 | T128: 9
A129: 132 | B129: Bill Rater | C129: 14 | D129: retired | E129: Bill@theraters.us | F129: Yes | G129: 16 | H129: 10 | I129: 15 | N129: 14 | T129: 13
A130: 133 | B130: Gary Keller | C130: 20 | D130: retired | E130: GCPRO@sbcglobal.net | F130: Yes | I130: 24 | J130: 22 | L130: 20 | N130: 12 | O130: 22
A131: 134 | B131: James Miller | C131: 12 | D131: 36836 | E131: james.a.miller@lmco.com | F131: No | J131: 15 | L131: 11 | N131: 12 | O131: 11 | T131: 12
A132: 135 | B132: Gary Howard | C132: 23 | D132: 501-0370 | E132: gary.howard@lmco.com | G132: 21 | I132: 23 | L132: 25 | O132: 26 | T132: 22
A133: 136 | B133: Kevan Western | C133: 12 | D133: 54008 | E133: kevan.d.western@lmco.com | F133: No | Q133: 12 | R133: 12 | S133: 12 | T133: 12
A134: 137 | B134: Mark Johnston | C134: 16 | H134: 12 | I134: 20 | J134: 13 | N134: 16 | O134: 19
C135: =SUM(C128:C134)/7 -> 15.42857143
A136: 50 | B136: Team No. 16 | C136: Quota | D136: Phone | E136: E-Mail | F136: Member
A137: 51 | B137: Ken Wood | C137: =IF(ROUND(AVERAGE(G137:T137),0) < 9,9,(IF(ROUND(AVERAGE(G137:T137),0) > 25,25,ROUND(AVERAGE(G137:T137),0)))) -> 18 | D137: 987-9538 | E137: ken.d.wood@lmco.com | F137: No | G137: 17 | H137: 17 | J137: 19 | N137: 20 | O137: 18
A138: 52 | B138: Paul Rowland | C138: 21 | F138: yes | J138: 20 | L138: 21 | O138: 22 | S138: 21 | T138: 21
A139: 53 | B139: Mike Hester | C139: 15 | D139: 78193 | E139: michael.l.hester@lmco.com | F139: H70 | G139: 14 | H139: 14 | J139: 14 | L139: 16 | N139: 14 | O139: 16
A140: 54 | B140: Scott Horn | C140: 11 | D140: 763-2602 | E140: scott.e.horn@lmco.com | I140: 12 | O140: 9
A141: 55 | B141: Kevin Smiley | C141: 18 | H141: 11 | I141: 22 | N141: 17 | S141: 19 | T141: 19
A142: 56 | B142: Lance Eddins | C142: 17 | G142: 21 | I142: 18 | J142: 14 | L142: 14 | N142: 17
A143: 57 | B143: William Renshaw | C143: 12 | D143: 72870 | E143: william.m.renshaw@lmco.com | F143: No | H143: 11 | I143: 14 | L143: 15 | S143: 11 | T143: 11
C144: =SUM(C137:C143)/7 -> 16
A145: 90 | B145: Team No. 17 | C145: Quota | D145: Phone | E145: E-Mail | F145: Member
A146: 91 | B146: Danny Watson | C146: =IF(ROUND(AVERAGE(G146:T146),0) < 9,9,(IF(ROUND(AVERAGE(G146:T146),0) > 25,25,ROUND(AVERAGE(G146:T146),0)))) -> 13 | D146: 229-7747 | E146: dannyr47@att.net | F146: No | G146: 13 | H146: 13 | I146: 13 | J146: 11 | L146: 11 | N146: 14 | O146: 14
A147: 92 | B147: Billy Keck | C147: =IF(ROUND(AVERAGE(G147:T147),0) < 9,9,(IF(ROUND(AVERAGE(G147:T147),0) > 25,25,ROUND(AVERAGE(G147:T147),0)))) -> 21 | D147: 270-2575 | E147: billykeck@gmail.com | F147: No | G147: 22 | H147: 10 | I147: 27 | J147: 22 | O147: 23
A148: 93 | B148: Scott Conder | C148: =IF(ROUND(AVERAGE(G148:T148),0) < 9,9,(IF(ROUND(AVERAGE(G148:T148),0) > 25,25,ROUND(AVERAGE(G148:T148),0)))) -> 15 | D148: 682-556-1140 | E148: scottconder1@msn.com | F148: No | G148: 17 | H148: 13 | I148: 15 | J148: 15 | L148: 16 | N148: 13 | O148: 17
A149: 94 | B149: Richard Roye | C149: =IF(ROUND(AVERAGE(G149:T149),0) < 9,9,(IF(ROUND(AVERAGE(G149:T149),0) > 25,25,ROUND(AVERAGE(G149:T149),0)))) -> 12 | D149: 441-7762 | E149: rroye@aledobb.com | G149: 13 | H149: 14 | I149: 12 | J149: 9 | L149: 11 | N149: 12 | O149: 15
A150: 95 | B150: Phil Rigdon | C150: =IF(ROUND(AVERAGE(G150:T150),0) < 9,9,(IF(ROUND(AVERAGE(G150:T150),0) > 25,25,ROUND(AVERAGE(G150:T150),0)))) -> 14 | D150: 991-7246 | E150: pnrigdon@msn.com | G150: 17 | L150: 8 | N150: 14 | S150: 15 | T150: 15
C153: =SUM(C146:C152)/5 -> 15
A154: 20 | B154: Team No. 18 | C154: Quota | D154: Phone | E154: E-Mail | F154: Member
A155: 21 | B155: Rob Donald | C155: =IF(ROUND(AVERAGE(G155:T155),0) < 9,9,(IF(ROUND(AVERAGE(G155:T155),0) > 25,25,ROUND(AVERAGE(G155:T155),0)))) -> 10 | D155: 682-444-6503 | E155: robert.a.donald@lmco.com | F155: yes | G155: 12 | H155: 11 | J155: 5 | O155: 8 | T155: 12
A156: 22 | B156: Steve Shinn | C156: =IF(ROUND(AVERAGE(G156:T156),0) < 9,9,(IF(ROUND(AVERAGE(G156:T156),0) > 25,25,ROUND(AVERAGE(G156:T156),0)))) -> 12 | D156: 53852 | E156: steven.c.shinn@lmco.com | F156: No | H156: 10 | N156: 13 | R156: 12 | S156: 12 | T156: 12
A157: 23 | B157: Eric Gunn | C157: =IF(ROUND(AVERAGE(G157:T157),0) < 9,9,(IF(ROUND(AVERAGE(G157:T157),0) > 25,25,ROUND(AVERAGE(G157:T157),0)))) -> 18 | D157: 623-628-3806 | E157: eric.gunn@lmco.com | G157: 16 | H157: 20 | J157: 18 | L157: 16 | N157: 21 | O157: 16
A158: 24 | B158: John Supra | C158: =IF(ROUND(AVERAGE(G158:T158),0) < 9,9,(IF(ROUND(AVERAGE(G158:T158),0) > 25,25,ROUND(AVERAGE(G158:T158),0)))) -> 10 | D158: 817-682-4182 | E158: john.e.supra@lmco.com | G158: 12 | I158: 11 | J158: 9 | L158: 8 | N158: 9
A159: 25 | B159: Ann Godbey | C159: =IF(ROUND(AVERAGE(G159:T159),0) < 9,9,(IF(ROUND(AVERAGE(G159:T159),0) > 25,25,ROUND(AVERAGE(G159:T159),0)))) -> 11 | D159: 935-5219 | E159: ann.t.godbey@lmco.com | H159: 11 | I159: 11 | J159: 9 | O159: 12
B160: Ryan Monroe | C160: 14 | D160: 850-543-1641 | E160: ryan.t.monroe@lmco.com | I160: 15 | L160: 14 | N160: 12 | O160: 13
C162: =SUM(C155:C161)/6 -> 12.5
A163: 30 | B163: Team No. 19 | C163: Quota | D163: Phone | E163: E-Mail | F163: Member
A164: 31 | B164: Ken Fairchild | C164: =IF(ROUND(AVERAGE(G164:T164),0) < 9,9,(IF(ROUND(AVERAGE(G164:T164),0) > 25,25,ROUND(AVERAGE(G164:T164),0)))) -> 10 | D164: 77828 | E164: kenneth.l.fairchild@lmco.com | F164: F4 | I164: 9 | L164: 9 | N164: 12 | S164: 9 | T164: 9
A165: 32 | B165: Tim Edwards | C165: 14 | E165: timothy.a.edwards@lmco.com | F165: E4 | G165: 14 | I165: 14 | J165: 13 | L165: 17 | N165: 13 | O165: 12
A166: 33 | B166: Jerry Burns | C166: 9 | D166: 76717 | F166: yes | H166: 6 | L166: 8 | R166: 11 | S166: 11 | T166: 11
A167: 34 | B167: Ranier Woods | C167: 13 | F167: No | G167: 10 | J167: 15 | N167: 15 | O167: 15 | T167: 12
A168: 35 | B168: Dale Rostamo | C168: 21 | F168: R48 | G168: 22 | H168: 18 | I168: 20 | J168: 23 | L168: 23
B169: James Prescott | C169: 13 | D169: 925-6799 | F169: yes | G169: 14 | H169: 16 | I169: 15 | J169: 12 | N169: 9 | O169: 12
C171: =SUM(C164:C169)/6 -> 13.33333333
A172: 180 | B172: Team No. 20 | C172: Quota | D172: Phone | E172: E-Mail | F172: Member
A173: 181 | B173: Dennis Weber | C173: =IF(ROUND(AVERAGE(G173:T173),0) < 9,9,(IF(ROUND(AVERAGE(G173:T173),0) > 25,25,ROUND(AVERAGE(G173:T173),0)))) -> 11 | D173: 903-9973 | E173: dennisweber47@juno.com | F173: No | G173: 10 | H173: 10 | J173: 12 | L173: 10 | O173: 12
A174: 182 | B174: Bill Gault | C174: 11 | D174: 909-0836 | E174: bmw1jeep2@charter.net | F174: G72 | H174: 9 | I174: 14 | J174: 12 | L174: 10 | N174: 12 | O174: 11
A175: 183 | B175: Wayne McCleery | C175: 13 | D175: 249-5360 | E175: acegolf@flash.net | F175: M70 | J175: 8 | Q175: 14 | R175: 14 | S175: 14 | T175: 14
A176: 184 | B176: Dan Todd | C176: 11 | G176: 7 | I176: 14 | R176: 12 | S176: 12 | T176: 12
A177: 185 | B177: Ken McPherson | C177: =IF(ROUND(AVERAGE(G177:T177),0) < 9,9,(IF(ROUND(AVERAGE(G177:T177),0) > 25,25,ROUND(AVERAGE(G177:T177),0)))) -> 18 | E177: ken.d.mcpherson@lmco.com | H177: 20 | J177: 15 | L177: 20 | N177: 19 | T177: 16
B178: Roy Ooten | C178: 15 | G178: 12 | H178: 17 | I178: 15 | L178: 15 | N178: 14 | O178: 15
B179: Sam Satcher | C179: 11 | G179: 11 | I179: 10 | N179: 13 | O179: 11
C180: =SUM(C173:C179)/7 -> 12.85714286
A181: 10 | B181: Team No. 21 | C181: Quota | D181: Phone | E181: E-Mail | F181: Member
A182: 11 | B182: Jeff Holmlund | C182: =IF(ROUND(AVERAGE(G182:T182),0) < 9,9,(IF(ROUND(AVERAGE(G182:T182),0) > 25,25,ROUND(AVERAGE(G182:T182),0)))) -> 19 | D182: 378-2617 | E182: jeffrey.a.holmlund@lmco.com | F182: H56 | G182: 15 | J182: 22 | L182: 20 | N182: 20 | O182: 18
A183: 12 | B183: John Miles | C183: 9 | D183: 688-5932 | E183: jimiles1@sbcglobal.net | F183: No | H183: 6 | J183: 7 | N183: 11 | O183: 8 | T183: 9
A184: 13 | B184: Stephen Taylor | C184: 15 | D184: 773-8147 | E184: sttaylor@flash.net | F184: T17 | Q184: 15 | R184: 15 | S184: 15 | T184: 15
A185: 14 | B185: Kim Autry | C185: 11 | D185: 935-4726 | E185: kim.n.autry@lmco.com | F185: No | G185: 14 | H185: 12 | I185: 10 | J185: 8 | L185: 13
A186: 15 | B186: Gerry Norvell | C186: =IF(ROUND(AVERAGE(G186:T186),0) < 9,9,(IF(ROUND(AVERAGE(G186:T186),0) > 25,25,ROUND(AVERAGE(G186:T186),0)))) -> 17 | D186: 935-3211 | E186: gerry.norvell@lmco.com | F186: yes | G186: 14 | H186: 13 | I186: 18 | J186: 18 | L186: 21 | N186: 19 | O186: 17
A187: 16 | B187: Ed Blosch | C187: 16 | D187: 935-1522 | E187: edwin.l.blosch@lmco.com | I187: 12 | L187: 21 | N187: 18 | S187: 14 | T187: 14
C189: =SUM(C182:C188)/6 -> 14.5
A190: 100 | B190: Team No. 22 | C190: Quota | D190: Phone | E190: E-Mail | F190: Member
A191: 103 | B191: Wes Zwerneman | C191: =IF(ROUND(AVERAGE(G191:T191),0) < 9,9,(IF(ROUND(AVERAGE(G191:T191),0) > 25,25,ROUND(AVERAGE(G191:T191),0)))) -> 16 | D191: 228-6901 | E191: wes.d.zwerneman@lmco.com | G191: 16 | I191: 13 | J191: 17 | L191: 22 | N191: 14 | O191: 15
A192: 107 | B192: Bob Eller | C192: =IF(ROUND(AVERAGE(G192:T192),0) < 9,9,(IF(ROUND(AVERAGE(G192:T192),0) > 25,25,ROUND(AVERAGE(G192:T192),0)))) -> 11 | G192: 6 | I192: 15 | L192: 15 | N192: 10 | T192: 11
A193: 103 | B193: Danny Rodriguez | C193: 15 | H193: 15 | I193: 13 | J193: 15 | N193: 16 | O193: 17
A194: 104 | B194: Greg Stagg | C194: 20 | H194: 20
B195: John Bessolo | C195: =IF(ROUND(AVERAGE(G195:T195),0) < 9,9,(IF(ROUND(AVERAGE(G195:T195),0) > 25,25,ROUND(AVERAGE(G195:T195),0)))) -> 9 | G195: 9 | H195: 7 | I195: 7 | J195: 4 | L195: 5 | N195: 6 | O195: 10
B196: Mike Brechbuhl | C196: 14 | G196: 13 | H196: 10 | J196: 20
C198: =SUM(C191:C197)/6 -> 14.16666667
A200: 332 | B200: Individuals | C200: Quota | D200: Phone | E200: E-Mail | F200: Member
A201: Brent Anderson | B201: Brent Anderson | C201: =IF(ROUND(AVERAGE(G201:T201),0) < 9,9,(IF(ROUND(AVERAGE(G201:T201),0) > 25,25,ROUND(AVERAGE(G201:T201),0)))) -> 9 | D201: 31540 | E201: brent.c.anderson@lmco.com | F201: No | Q201: 9 | R201: 9 | S201: 9 | T201: 9
B202: Doug McKay | C202: 18 | D202: 72565 | E202: douglas.mckay@lmco.com | F202: No | Q202: 18 | R202: 18 | S202: 18 | T202: 18
B203: Dwain Capshaw | C203: 17 | H203: 19 | O203: 22 | R203: 14 | S203: 14 | T203: 14
B204: Grayland Limme | C204: 18 | Q204: 18 | R204: 18 | S204: 18 | T204: 18
B205: Gerald Tyner | C205: 9 | D205: 53605 | Q205: 9 | R205: 9 | S205: 9 | T205: 9
B206: Robert Dillon | C206: 13 | D206: 71796 | F206: No | Q206: 13 | R206: 13 | S206: 13 | T206: 13
B207: Bob Bellotti | C207: =IF(ROUND(AVERAGE(G207:T207),0) < 9,9,(IF(ROUND(AVERAGE(G207:T207),0) > 25,25,ROUND(AVERAGE(G207:T207),0)))) -> 9 | F207: no | Q207: 9 | R207: 9 | S207: 9 | T207: 9
B208: Conor Bingaman | C208: 12 | D208: 71250 | E208: john.c.bingaman@lmco.com | F208: No | Q208: 12 | R208: 12 | S208: 12 | T208: 12
B209: Bill Garver | D209: 51762 | F209: no
B210: Marshall Hinkle | C210: 17 | D210: 304-4417 | E210: marshall.d.hinkle@lmco.com | Q210: 17 | R210: 17 | S210: 17 | T210: 17
... 19 more rows

Sheet A DIV
A1: =FEGL_MASTER!B1 -> Team No. 1 | C1: =FEGL_MASTER!C1 -> Quota | E1: =FEGL_MASTER!B10 -> Team No. 2 | G1: =FEGL_MASTER!C10 -> Quota | I1: =FEGL_MASTER!B19 -> Team No. 3 | K1: =FEGL_MASTER!C19 -> Quota | M1: =FEGL_MASTER!B28 -> Team No. 4 | O1: =FEGL_MASTER!C28 -> Quota
A2: =FEGL_MASTER!B2 -> Danny Vrla | C2: =FEGL_MASTER!C2 -> 22 | E2: =FEGL_MASTER!B11 -> Bill Blackwell | G2: =FEGL_MASTER!C11 -> 25 | I2: =FEGL_MASTER!B20 -> Craig Treece | K2: =FEGL_MASTER!C20 -> 18 | M2: =FEGL_MASTER!B29 -> Roy Mayes | O2: =FEGL_MASTER!C29 -> 18
A3: =FEGL_MASTER!B3 -> Dick Miller | C3: =FEGL_MASTER!C3 -> 22 | E3: =FEGL_MASTER!B12 -> Tom Schlueter | G3: =FEGL_MASTER!C12 -> 24 | I3: =FEGL_MASTER!B21 -> Terry Hay | K3: =FEGL_MASTER!C21 -> 18 | M3: =FEGL_MASTER!B30 -> Steve Burre | O3: =FEGL_MASTER!C30 -> 19
A4: =FEGL_MASTER!B4 -> Charlie Bean | C4: =FEGL_MASTER!C4 -> 25 | E4: =FEGL_MASTER!B13 -> Scott Howell | G4: =FEGL_MASTER!C13 -> 23 | I4: =FEGL_MASTER!B22 -> Scott Rudin | K4: =FEGL_MASTER!C22 -> 22 | M4: =FEGL_MASTER!B31 -> Paul Parker | O4: =FEGL_MASTER!C31 -> 21
A5: =FEGL_MASTER!B5 -> Bryan Goble | C5: =FEGL_MASTER!C5 -> 15 | E5: =FEGL_MASTER!B14 -> Greg Byrnes | G5: =FEGL_MASTER!C14 -> 24 | I5: =FEGL_MASTER!B23 -> Peter Stanfill | K5: =FEGL_MASTER!C23 -> 20 | M5: =FEGL_MASTER!B32 -> Paul Loken | O5: =FEGL_MASTER!C32 -> 20
A6: =FEGL_MASTER!B6 -> Rod Newberry | C6: =FEGL_MASTER!C6 -> 20 | E6: =FEGL_MASTER!B15 -> Marylou Anderson | G6: =FEGL_MASTER!C15 -> 18 | I6: =FEGL_MASTER!B24 -> Greg Larson | K6: =FEGL_MASTER!C24 -> 20 | M6: =FEGL_MASTER!B33 -> Richard Rutledge | O6: =FEGL_MASTER!C33 -> 13
A7: =FEGL_MASTER!B7 -> 0 | C7: =FEGL_MASTER!C7 -> 0 | E7: =FEGL_MASTER!B16 -> Susan Blackwell | G7: =FEGL_MASTER!C16 -> 16 | I7: =FEGL_MASTER!B25 -> 0 | K7: =FEGL_MASTER!C25 -> 0 | M7: =FEGL_MASTER!B34 -> 0 | O7: =FEGL_MASTER!C34 -> 0
A8: =FEGL_MASTER!B8 -> 0 | C8: =FEGL_MASTER!C8 -> 0 | E8: =FEGL_MASTER!B17 -> 0 | G8: =FEGL_MASTER!C17 -> 0 | I8: =FEGL_MASTER!B26 -> 0 | K8: =FEGL_MASTER!C26 -> 0 | M8: =FEGL_MASTER!B35 -> 0 | O8: =FEGL_MASTER!C35 -> 0
A11: =FEGL_MASTER!B37 -> Team No. 5 | C11: =FEGL_MASTER!C37 -> Quota | E11: =FEGL_MASTER!B46 -> Team No. 6 | G11: =FEGL_MASTER!C46 -> Quota | I11: =FEGL_MASTER!B55 -> Team No. 7 | K11: =FEGL_MASTER!C55 -> Quota | M11: =FEGL_MASTER!B64 -> Team No. 8 | O11: =FEGL_MASTER!C64 -> Quota
A12: =FEGL_MASTER!B38 -> Carl Jettun | C12: =FEGL_MASTER!C38 -> 18 | E12: =FEGL_MASTER!B47 -> Chris Sell | G12: =FEGL_MASTER!C47 -> 23 | I12: =FEGL_MASTER!B56 -> Mike Kimble | K12: =FEGL_MASTER!C56 -> 23 | M12: =FEGL_MASTER!B65 -> Dennis McBrayer | O12: =FEGL_MASTER!C65 -> 17
A13: =FEGL_MASTER!B39 -> Terry Williams | C13: =FEGL_MASTER!C39 -> 19 | E13: =FEGL_MASTER!B48 -> James Kilpatrick | G13: =FEGL_MASTER!C48 -> 15 | I13: =FEGL_MASTER!B57 -> Duane Casey | K13: =FEGL_MASTER!C57 -> 17 | M13: =FEGL_MASTER!B66 -> Mark Melanson | O13: =FEGL_MASTER!C66 -> 21
A14: =FEGL_MASTER!B40 -> Ron Garvin | C14: =FEGL_MASTER!C40 -> 22 | E14: =FEGL_MASTER!B49 -> Sharon Scharbach | G14: =FEGL_MASTER!C49 -> 9 | I14: =FEGL_MASTER!B58 -> Chris Tarpley | K14: =FEGL_MASTER!C58 -> 22 | M14: =FEGL_MASTER!B67 -> Kelly Whitfield | O14: =FEGL_MASTER!C67 -> 23
A15: =FEGL_MASTER!B41 -> Danny Uselton | C15: =FEGL_MASTER!C41 -> 19 | E15: =FEGL_MASTER!B50 -> Frank Gallison | G15: =FEGL_MASTER!C50 -> 21 | I15: =FEGL_MASTER!B59 -> Bob Madewell | K15: =FEGL_MASTER!C59 -> 15 | M15: =FEGL_MASTER!B68 -> Jim Norris | O15: =FEGL_MASTER!C68 -> 19
A16: =FEGL_MASTER!B42 -> Lane Massie | C16: =FEGL_MASTER!C42 -> 25 | E16: =FEGL_MASTER!B51 -> Joe Revay | G16: =FEGL_MASTER!C51 -> 18 | I16: =FEGL_MASTER!B60 -> Dave Watson | K16: =FEGL_MASTER!C60 -> 19 | M16: =FEGL_MASTER!B69 -> Bill Margolis | O16: =FEGL_MASTER!C69 -> 13
A17: =FEGL_MASTER!B43 -> Susan Ethetton | C17: =FEGL_MASTER!C43 -> 9 | E17: =FEGL_MASTER!B52 -> Tom Imboden | G17: =FEGL_MASTER!C52 -> 17 | I17: =FEGL_MASTER!B61 -> 0 | K17: =FEGL_MASTER!C61 -> 0 | M17: =FEGL_MASTER!B70 -> Steven Floyd | O17: =FEGL_MASTER!C70 -> 19
A18: =FEGL_MASTER!B44 -> 0 | C18: =FEGL_MASTER!C44 -> 0 | E18: =FEGL_MASTER!B53 -> 0 | G18: =FEGL_MASTER!C53 -> 0 | I18: =FEGL_MASTER!B62 -> 0 | K18: =FEGL_MASTER!C62 -> 0 | M18: =FEGL_MASTER!B71 -> Dan Lawrence | O18: =FEGL_MASTER!C71 -> 24
A21: =FEGL_MASTER!B73 -> Team No. 9 | C21: =FEGL_MASTER!C73 -> Quota | E21: =FEGL_MASTER!B82 -> Team No. 10 | G21: =FEGL_MASTER!C82 -> Quota | I21: =FEGL_MASTER!B91 -> Team No. 11 | K21: =FEGL_MASTER!C91 -> Quota | M21: =FEGL_MASTER!B100 -> Team No. 12 | O21: =FEGL_MASTER!C100 -> Quota
A22: =FEGL_MASTER!B74 -> David Miley | C22: =FEGL_MASTER!C74 -> 14 | E22: =FEGL_MASTER!B83 -> Frankie Kubenka | G22: =FEGL_MASTER!C83 -> 16 | I22: =FEGL_MASTER!B92 -> David Ayrault | K22: =FEGL_MASTER!C92 -> 16 | M22: =FEGL_MASTER!B101 -> Jason DeLong | O22: =FEGL_MASTER!C101 -> 25
A23: =FEGL_MASTER!B75 -> Butch Morrison | C23: =FEGL_MASTER!C228 -> 9 | E23: =FEGL_MASTER!B84 -> Marty James | G23: =FEGL_MASTER!C84 ->  | I23: =FEGL_MASTER!B93 -> Rick Ellis | K23: =FEGL_MASTER!C93 -> 15 | M23: =FEGL_MASTER!B102 -> Travis Libby | O23: =FEGL_MASTER!C102 -> 16
A24: =FEGL_MASTER!B76 -> Bruce Pruitt | C24: =FEGL_MASTER!C76 -> 13 | E24: =FEGL_MASTER!B85 -> Oliver Benfer | G24: =FEGL_MASTER!C85 -> 13 | I24: =FEGL_MASTER!B94 -> Steve Matney | K24: =FEGL_MASTER!C94 -> 18 | M24: =FEGL_MASTER!B103 -> Aaron Corby | O24: =FEGL_MASTER!C103 -> 18
A25: =FEGL_MASTER!B77 -> Tony Wedgeworth | C25: =FEGL_MASTER!C77 -> 21 | E25: =FEGL_MASTER!B86 -> Tom Marrs | G25: =FEGL_MASTER!C86 -> 14 | I25: =FEGL_MASTER!B95 -> Stewart Coley | K25: =FEGL_MASTER!C95 -> 20 | M25: =FEGL_MASTER!B104 -> Kyle Bottom | O25: =FEGL_MASTER!C104 -> 20
A26: =FEGL_MASTER!B78 -> Josh Lewis | C26: =FEGL_MASTER!C78 -> 17 | E26: =FEGL_MASTER!B87 -> Louis Gonzalez | G26: =FEGL_MASTER!C87 -> 19 | I26: =FEGL_MASTER!B96 -> Mitch Kaarlela | K26: =FEGL_MASTER!C96 ->  | M26: =FEGL_MASTER!B105 -> Brad Dittmar | O26: =FEGL_MASTER!C105 -> 20
A27: =FEGL_MASTER!B79 -> Rowdy Yates | C27: =FEGL_MASTER!C79 -> 11 | E27: =FEGL_MASTER!B88 -> J R Martinez | G27: =FEGL_MASTER!C88 -> 15 | I27: =FEGL_MASTER!B97 -> Rick Lang | K27: =FEGL_MASTER!C97 -> 19 | M27: =FEGL_MASTER!B106 -> 0 | O27: =FEGL_MASTER!C106 -> 0
A28: =FEGL_MASTER!B80 -> 0 | C28: =FEGL_MASTER!C80 -> 0 | E28: =FEGL_MASTER!B89 -> Joe Edmiston | G28: =FEGL_MASTER!C89 -> 14 | I28: =FEGL_MASTER!B98 -> Billy Coyle | K28: =FEGL_MASTER!C98 -> 18 | M28: =FEGL_MASTER!B107 -> 0 | O28: =FEGL_MASTER!C107 -> 0
A33: Hole # | B33: Closest-to-Hole | D33: Win | F33: Quota | G33: Most Above Quota | I33: Win | L33: Team # | M33: Previous | N33: Current | O33: Total
A34: 7 | B34: Wedgeworth | D34: $10 | F34: (+8) | G34: Imboden | I34: $12 | K34: 1st | L34: 11 | M34: 84 | N34: 16 | O34: =SUM(M34+N34) -> 100
A35: 8 | B35: Bean | D35: $10 | F35: (+8) | G35: Lang | I35: $12 | K35: 2nd | L35: 10 | M35: 77 | N35: 13 | O35: 90
K36: 3rd | L36: 12 | M36: 76 | N36: 13 | O36: 89
L37: 1 | M37: 75 | N37: 13 | O37: 88
A38: Team # | B38: Most Over Quota | D38: Win | L38: 9 | M38: 80 | N38: 7 | O38: 87
A39: 4 | B39: (+11) | D39: $40 | L39: 3 | M39: 75 | N39: 9 | O39: 84
A40: 11 | B40: (+11) | D40: $40 | L40: 6 | M40: 67 | N40: 17 | O40: 84
L41: 7 | M41: 66 | N41: 16 | O41: 82
L42: 4 | M42: 67 | N42: 13 | O42: 80
L43: 8 | M43: 68 | N43: 12 | O43: 80
L44: 5 | M44: 62 | N44: 13 | O44: 75
L45: 2 | M45: 63 | N45: 10 | O45: 73

Sheet B DIV
A1: =FEGL_MASTER!B109 -> Team No. 13 | C1: =FEGL_MASTER!C109 -> Quota | E1: =FEGL_MASTER!B118 -> Team No. 14 | G1: =FEGL_MASTER!C118 -> Quota | I1: =FEGL_MASTER!B127 -> Team No. 15 | K1: =FEGL_MASTER!C127 -> Quota | M1: =FEGL_MASTER!B136 -> Team No. 16 | O1: =FEGL_MASTER!C136 -> Quota
A2: =FEGL_MASTER!B110 -> Charlie Lambert | C2: =FEGL_MASTER!C110 -> 15 | E2: =FEGL_MASTER!B119 -> Bob Bienski | G2: =FEGL_MASTER!C119 -> 20 | I2: =FEGL_MASTER!B128 -> Dave Utech | K2: =FEGL_MASTER!C128 -> 11 | M2: =FEGL_MASTER!B137 -> Ken Wood | O2: =FEGL_MASTER!C137 -> 18
A3: =FEGL_MASTER!B111 -> DeWayne Cox | C3: =FEGL_MASTER!C111 -> 20 | E3: =FEGL_MASTER!B120 -> James Barkelew | G3: =FEGL_MASTER!C120 -> 17 | I3: =FEGL_MASTER!B129 -> Bill Rater | K3: =FEGL_MASTER!C129 -> 14 | M3: =FEGL_MASTER!B138 -> Paul Rowland | O3: =FEGL_MASTER!C138 -> 21
A4: =FEGL_MASTER!B112 -> Joe Andrews | C4: =FEGL_MASTER!C112 -> 15 | E4: =FEGL_MASTER!B121 -> Wayne Maddox | G4: =FEGL_MASTER!C121 -> 18 | I4: =FEGL_MASTER!B130 -> Gary Keller | K4: =FEGL_MASTER!C130 -> 20 | M4: =FEGL_MASTER!B139 -> Mike Hester | O4: =FEGL_MASTER!C139 -> 15
A5: =FEGL_MASTER!B113 -> Dan Longeway | C5: =FEGL_MASTER!C113 -> 16 | E5: =FEGL_MASTER!B122 -> Jack Young | G5: =FEGL_MASTER!C122 -> 12 | I5: =FEGL_MASTER!B131 -> James Miller | K5: =FEGL_MASTER!C131 -> 12 | M5: =FEGL_MASTER!B140 -> Scott Horn | O5: =FEGL_MASTER!C140 -> 11
A6: =FEGL_MASTER!B114 -> Cheryl Lambert | C6: =FEGL_MASTER!C114 -> 9 | E6: =FEGL_MASTER!B123 -> Jorge Cornejo | G6: =FEGL_MASTER!C123 -> 12 | I6: =FEGL_MASTER!B132 -> Gary Howard | K6: =FEGL_MASTER!C132 -> 23 | M6: =FEGL_MASTER!B141 -> Kevin Smiley | O6: =FEGL_MASTER!C141 -> 18
A7: =FEGL_MASTER!B115 -> 0 | C7: =FEGL_MASTER!C115 -> 0 | E7: =FEGL_MASTER!B124 -> Garnett Andrews | G7: =FEGL_MASTER!C124 -> 9 | I7: =FEGL_MASTER!B133 -> Kevan Western | K7: =FEGL_MASTER!C133 -> 12 | M7: =FEGL_MASTER!B142 -> Lance Eddins | O7: =FEGL_MASTER!C142 -> 17
A8: =FEGL_MASTER!B116 -> 0 | C8: =FEGL_MASTER!C116 -> 0 | E8: =FEGL_MASTER!B125 -> Jerry Burns | G8: =FEGL_MASTER!C125 -> 15 | I8: =FEGL_MASTER!B134 -> Mark Johnston | K8: =FEGL_MASTER!C134 -> 16 | M8: =FEGL_MASTER!B143 -> William Renshaw | O8: =FEGL_MASTER!C143 -> 12
A11: =FEGL_MASTER!B145 -> Team No. 17 | C11: =FEGL_MASTER!C145 -> Quota | E11: =FEGL_MASTER!B154 -> Team No. 18 | G11: =FEGL_MASTER!C154 -> Quota | I11: =FEGL_MASTER!B163 -> Team No. 19 | K11: =FEGL_MASTER!C163 -> Quota | M11: =FEGL_MASTER!B172 -> Team No. 20 | O11: =FEGL_MASTER!C172 -> Quota
A12: =FEGL_MASTER!B146 -> Danny Watson | C12: =FEGL_MASTER!C146 -> 13 | E12: =FEGL_MASTER!B155 -> Rob Donald | G12: =FEGL_MASTER!C155 -> 10 | I12: =FEGL_MASTER!B164 -> Ken Fairchild | K12: =FEGL_MASTER!C164 -> 10 | M12: =FEGL_MASTER!B173 -> Dennis Weber | O12: =FEGL_MASTER!C173 -> 11
A13: =FEGL_MASTER!B147 -> Billy Keck | C13: =FEGL_MASTER!C147 -> 21 | E13: =FEGL_MASTER!B156 -> Steve Shinn | G13: =FEGL_MASTER!C156 -> 12 | I13: =FEGL_MASTER!B165 -> Tim Edwards | K13: =FEGL_MASTER!C165 -> 14 | M13: =FEGL_MASTER!B174 -> Bill Gault | O13: =FEGL_MASTER!C174 -> 11
A14: =FEGL_MASTER!B148 -> Scott Conder | C14: =FEGL_MASTER!C148 -> 15 | E14: =FEGL_MASTER!B157 -> Eric Gunn | G14: =FEGL_MASTER!C157 -> 18 | I14: =FEGL_MASTER!B166 -> Jerry Burns | K14: =FEGL_MASTER!C166 -> 9 | M14: =FEGL_MASTER!B175 -> Wayne McCleery | O14: =FEGL_MASTER!C175 -> 13
A15: =FEGL_MASTER!B149 -> Richard Roye | C15: =FEGL_MASTER!C149 -> 12 | E15: =FEGL_MASTER!B158 -> John Supra | G15: =FEGL_MASTER!C158 -> 10 | I15: =FEGL_MASTER!B167 -> Ranier Woods | K15: =FEGL_MASTER!C167 -> 13 | M15: =FEGL_MASTER!B176 -> Dan Todd | O15: =FEGL_MASTER!C176 -> 11
A16: =FEGL_MASTER!B150 -> Phil Rigdon | C16: =FEGL_MASTER!C150 -> 14 | E16: =FEGL_MASTER!B159 -> Ann Godbey | G16: =FEGL_MASTER!C159 -> 11 | I16: =FEGL_MASTER!B168 -> Dale Rostamo | K16: =FEGL_MASTER!C168 -> 21 | M16: =FEGL_MASTER!B177 -> Ken McPherson | O16: =FEGL_MASTER!C177 -> 18
A17: =FEGL_MASTER!B151 -> 0 | C17: =FEGL_MASTER!C151 -> 0 | E17: =FEGL_MASTER!B160 -> Ryan Monroe | G17: =FEGL_MASTER!C160 -> 14 | I17: =FEGL_MASTER!B169 -> James Prescott | K17: =FEGL_MASTER!C169 -> 13 | M17: =FEGL_MASTER!B178 -> Roy Ooten | O17: =FEGL_MASTER!C178 -> 15
A18: =FEGL_MASTER!B152 -> 0 | C18: =FEGL_MASTER!C152 -> 0 | E18: =FEGL_MASTER!B161 -> 0 | G18: =FEGL_MASTER!C161 -> 0 | I18: =FEGL_MASTER!B170 -> 0 | K18: =FEGL_MASTER!C170 -> 0 | M18: =FEGL_MASTER!B179 -> Sam Satcher | O18: =FEGL_MASTER!C179 -> 11
A21: =FEGL_MASTER!B181 -> Team No. 21 | C21: =FEGL_MASTER!C181 -> Quota | E21: =FEGL_MASTER!B190 -> Team No. 22 | G21: =FEGL_MASTER!C190 -> Quota
A22: =FEGL_MASTER!B182 -> Jeff Holmlund | C22: =FEGL_MASTER!C182 -> 19 | E22: =FEGL_MASTER!B191 -> Wes Zwerneman | G22: =FEGL_MASTER!C191 -> 16
A23: =FEGL_MASTER!B183 -> John Miles | C23: =FEGL_MASTER!C183 -> 9 | E23: =FEGL_MASTER!B192 -> Bob Eller | G23: =FEGL_MASTER!C192 -> 11
A24: =FEGL_MASTER!B184 -> Stephen Taylor | C24: =FEGL_MASTER!C184 -> 15 | E24: =FEGL_MASTER!B193 -> Danny Rodriguez | G24: =FEGL_MASTER!C193 -> 15
A25: =FEGL_MASTER!B185 -> Kim Autry | C25: =FEGL_MASTER!C185 -> 11 | E25: =FEGL_MASTER!B194 -> Greg Stagg | G25: =FEGL_MASTER!C194 -> 20
A26: =FEGL_MASTER!B186 -> Gerry Norvell | C26: =FEGL_MASTER!C186 -> 17 | E26: =FEGL_MASTER!B195 -> John Bessolo | G26: =FEGL_MASTER!C195 -> 9
A27: =FEGL_MASTER!B187 -> Ed Blosch | C27: =FEGL_MASTER!C187 -> 16 | E27: =FEGL_MASTER!B196 -> Mike Brechbuhl | G27: =FEGL_MASTER!C196 -> 14
A28: =FEGL_MASTER!B188 -> 0 | C28: =FEGL_MASTER!C188 -> 0 | E28: =FEGL_MASTER!B197 -> 0 | G28: =FEGL_MASTER!C197 -> 0
A33: Hole # | B33: Closest-to-Hole | D33: Win | F33: Quota | G33: Most Above Quota | I33: Win | L33: Team # | M33: Previous | N33: Current | O33: Total
A34: 14 | B34: Howard | D34: $10 | F34: (+6) | G34: Cheryl Lambert | I34: $10 | K34: 1st | L34: 19 | M34: 82 | N34: 16 | O34: =SUM(M34+N34) -> 98
A35: 16 | B35: Norvell | D35: $10 | F35: (+6) | G35: Andrews | I35: $10 | K35: 2nd | L35: 16 | M35: 80 | N35: 16 | O35: 96
K36: 3rd | L36: 17 | M36: 75 | N36: 19 | O36: 94
L37: 15 | M37: 72 | N37: 13 | O37: 85
A38: Team # | B38: Most Over Quota | D38: Win | L38: 14 | M38: 71 | N38: 13 | O38: 84
A39: 17 | B39: (+9) | D39: $40 | L39: 20 | M39: 72 | N39: 10 | O39: 82
A40: 15 | B40: (+8) | D40: $26 | L40: 22 | M40: 68 | N40: 13 | O40: 81
L41: 13 | M41: 57 | N41: 13 | O41: 70
L42: 18 | M42: 61 | N42: 7 | O42: 68
L43: 21 | M43: 61 | N43: 3 | O43: 64

Sheet $A
B1: Week 1 | C1: Week 2 | D1: Week 3 | E1: Week 4 | F1: Week 5 | G1: Week 6 | H1: Week 7 | I1: Week 8 | J1: Week 9 | K1: Week 10 | L1: Division | M1: Total
A2: =FEGL_MASTER!B1 -> Team No. 1 | B2: 32 | D2: 40 | F2: 10 | H2: 10 | K2: 10 | M2: =SUM(B2:L2) -> $102.00
A3: =FEGL_MASTER!B2 -> Danny Vrla | M3: =SUM(B3:L3) -> 0
A4: =FEGL_MASTER!B3 -> Dick Miller | M4: 0
A5: =FEGL_MASTER!B4 -> Charlie Bean | G5: 13 | J5: 10 | M5: $23.00
A6: =FEGL_MASTER!B5 -> Bryan Goble | D6: 12 | M6: $12.00
A7: =FEGL_MASTER!B6 -> Rod Newberry | M7: 0
A8: =FEGL_MASTER!B7 -> 0 | M8: 0
A9: =FEGL_MASTER!B8 -> 0 | M9: 0
A10: =FEGL_MASTER!B9 -> 
A11: =FEGL_MASTER!B10 -> Team No. 2 | F11: 10 | H11: 10 | K11: 10 | M11: $30.00
A12: =FEGL_MASTER!B11 -> Bill Blackwell | M12: 0
A13: =FEGL_MASTER!B12 -> Tom Schlueter | E13: 10 | M13: $10.00
A14: =FEGL_MASTER!B13 -> Scott Howell | M14: 0
A15: =FEGL_MASTER!B14 -> Greg Byrnes | M15: 0
A16: =FEGL_MASTER!B15 -> Marylou Anderson | M16: 0
A17: =FEGL_MASTER!B16 -> Susan Blackwell | M17: 0
A18: =FEGL_MASTER!B17 -> 0 | M18: 0
A19: =FEGL_MASTER!B18 -> 0
A20: =FEGL_MASTER!B19 -> Team No. 3 | E20: 16 | F20: 10 | H20: 10 | K20: 10 | M20: $46.00
A21: =FEGL_MASTER!B20 -> Craig Treece | G21: 13 | M21: $13.00
A22: =FEGL_MASTER!B21 -> Terry Hay | M22: 0
A23: =FEGL_MASTER!B22 -> Scott Rudin | M23: 0
A24: =FEGL_MASTER!B23 -> Peter Stanfill | M24: 0
A25: =FEGL_MASTER!B24 -> Greg Larson | G25: 3 | M25: $3.00
A26: =FEGL_MASTER!B25 -> 0 | M26: 0
A27: =FEGL_MASTER!B26 -> 0 | M27: 0
A28: =FEGL_MASTER!B27 -> 0
A29: =FEGL_MASTER!B28 -> Team No. 4 | F29: 10 | H29: 10 | J29: 40 | K29: 10 | M29: $70.00
A30: =FEGL_MASTER!B29 -> Roy Mayes | M30: 0
A31: =FEGL_MASTER!B30 -> Steve Burre | M31: 0
A32: =FEGL_MASTER!B31 -> Paul Parker | M32: 0
A33: =FEGL_MASTER!B32 -> Paul Loken | C33: 1 | M33: $1.00
A34: =FEGL_MASTER!B33 -> Richard Rutledge | M34: 0
A35: =FEGL_MASTER!B34 -> 0 | M35: 0
A36: =FEGL_MASTER!B35 -> 0 | M36: 0
A37: =FEGL_MASTER!B36 -> 0
A38: =FEGL_MASTER!B37 -> Team No. 5 | F38: 10 | H38: 10 | I38: 48 | K38: 10 | M38: $78.00
A39: =FEGL_MASTER!B38 -> Carl Jettun | M39: 0
A40: =FEGL_MASTER!B39 -> Terry Williams | B40: 14 | M40: $14.00
A41: =FEGL_MASTER!B40 -> Ron Garvin | I41: 10 | M41: $10.00
A42: =FEGL_MASTER!B41 -> Danny Uselton | I42: 12 | M42: $12.00
A43: =FEGL_MASTER!B42 -> Lane Massie | B43: 10 | M43: $10.00
A44: =FEGL_MASTER!B43 -> Susan Ethetton | M44: 0
A45: =FEGL_MASTER!B44 -> 0 | M45: 0
A46: =FEGL_MASTER!B45 -> 0
A47: =FEGL_MASTER!B46 -> Team No. 6 | F47: 10 | H47: 10 | I47: 32 | K47: 10 | M47: $62.00
A48: =FEGL_MASTER!B47 -> Chris Sell | C48: 11 | M48: $11.00
A49: =FEGL_MASTER!B48 -> James Kilpatrick | M49: 0
A50: =FEGL_MASTER!B49 -> Sharon Scharbach | M50: 0
A51: =FEGL_MASTER!B50 -> Frank Gallison | M51: 0
A52: =FEGL_MASTER!B51 -> Joe Revay | M52: 0
A53: =FEGL_MASTER!B52 -> Tom Imboden | J53: 12 | M53: $12.00
A54: =FEGL_MASTER!B53 -> 0 | M54: 0
A55: =FEGL_MASTER!B54 -> 0
A56: =FEGL_MASTER!B55 -> Team No. 7 | C56: 32 | D56: 40 | F56: 10 | G56: 32 | H56: 10 | K56: 10 | M56: $134.00
A57: =FEGL_MASTER!B56 -> Mike Kimble | M57: 0
A58: =FEGL_MASTER!B57 -> Duane Casey | M58: 0
A59: =FEGL_MASTER!B58 -> Chris Tarpley | C59: 18 | M59: $18.00
A60: =FEGL_MASTER!B59 -> Bob Madewell | D60: 11 | I60: 2 | M60: $13.00
A61: =FEGL_MASTER!B60 -> Dave Watson | M61: 0
A62: =FEGL_MASTER!B61 -> 0 | M62: 0
A63: =FEGL_MASTER!B62 -> 0 | M63: 0
A64: =FEGL_MASTER!B63 -> 0
A65: =FEGL_MASTER!B64 -> Team No. 8 | F65: 10 | H65: 10 | K65: 10 | M65: $30.00
A66: =FEGL_MASTER!B65 -> Dennis McBrayer | M66: 0
A67: =FEGL_MASTER!B66 -> Mark Melanson | I67: 2 | M67: =SUM(B67:L67) -> $2.00
A68: =FEGL_MASTER!B67 -> Kelly Whitfield | G68: 3 | M68: $3.00
A69: =FEGL_MASTER!B68 -> Jim Norris | D69: 1 | M69: $1.00
A70: =FEGL_MASTER!B69 -> Bill Margolis | M70: 0
A71: =FEGL_MASTER!B70 -> Steven Floyd | D71: 8 | M71: $8.00
A72: =FEGL_MASTER!B71 -> Dan Lawrence | M72: 0
A73: =FEGL_MASTER!B72 -> 0
A74: =FEGL_MASTER!B73 -> Team No. 9 | B74: 48 | F74: 10 | G74: 48 | H74: 10 | K74: 10 | M74: $126.00
A75: =FEGL_MASTER!B74 -> David Miley | M75: 0
A76: =FEGL_MASTER!B75 -> Butch Morrison | M76: 0
A77: =FEGL_MASTER!B76 -> Bruce Pruitt | G77: 3 | M77: $3.00
A78: =FEGL_MASTER!B77 -> Tony Wedgeworth | B78: 8 | I78: 10 | J78: 10 | M78: $28.00
A79: =FEGL_MASTER!B78 -> Josh Lewis | B79: 12 | M79: $12.00
A80: =FEGL_MASTER!B79 -> Rowdy Yates | G80: 3 | M80: $3.00
A81: =FEGL_MASTER!B80 -> 0 | M81: 0
A82: =FEGL_MASTER!B81 -> 0
A83: =FEGL_MASTER!B82 -> Team No. 10 | C83: 48 | E83: 48 | F83: 10 | H83: 10 | K83: 10 | L83: 96 | M83: $222.00
A84: =FEGL_MASTER!B83 -> Frankie Kubenka | C84: 12 | E84: 6 | M84: $18.00
A85: =FEGL_MASTER!B84 -> Marty James | M85: 0
A86: =FEGL_MASTER!B85 -> Oliver Benfer | M86: 0
A87: =FEGL_MASTER!B86 -> Tom Marrs | M87: 0
A88: =FEGL_MASTER!B87 -> Louis Gonzalez | M88: 0
A89: =FEGL_MASTER!B88 -> J R Martinez | M89: 0
A90: =FEGL_MASTER!B89 -> Joe Edmiston | C90: 1 | D90: 1 | E90: 6 | M90: $8.00
A91: =FEGL_MASTER!B90 -> 0
A92: =FEGL_MASTER!B91 -> Team No. 11 | F92: 10 | H92: 10 | J92: 40 | K92: 10 | L92: 240 | M92: $310.00
A93: =FEGL_MASTER!B92 -> David Ayrault | G93: 3 | M93: $3.00
A94: =FEGL_MASTER!B93 -> Rick Ellis | D94: 11 | M94: $11.00
A95: =FEGL_MASTER!B94 -> Steve Matney | M95: 0
A96: =FEGL_MASTER!B95 -> Stewart Coley | M96: 0
A97: =FEGL_MASTER!B96 -> Mitch Kaarlela | M97: 0
A98: =FEGL_MASTER!B97 -> Rick Lang | E98: 10 | I98: 2 | J98: 12 | M98: $24.00
A99: =FEGL_MASTER!B98 -> Billy Coyle | E99: 12 | I99: 2 | M99: $14.00
A101: =FEGL_MASTER!B100 -> Team No. 12 | E101: 16 | F101: 10 | H101: 10 | K101: 10 | L101: 64 | M101: $110.00
A102: =FEGL_MASTER!B101 -> Jason DeLong | M102: 0
A103: =FEGL_MASTER!B102 -> Travis Libby | C103: 1 | M103: $1.00
A104: =FEGL_MASTER!B103 -> Aaron Corby | I104: 2 | M104: $2.00
A105: =FEGL_MASTER!B104 -> Kyle Bottom | M105: 0
A106: =FEGL_MASTER!B105 -> Brad Dittmar | M106: 0
A107: =FEGL_MASTER!B106 -> 0 | M107: 0
A108: =FEGL_MASTER!B107 -> 0 | M108: 0
A109: =FEGL_MASTER!B99 -> 0
A110: Totals | B110: =SUM(B2:B109) -> $124.00 | C110: =SUM(C2:C109) -> $124.00 | D110: $124.00 | E110: $124.00 | F110: $120.00 | G110: $121.00 | H110: $120.00 | I110: $122.00 | J110: $124.00 | K110: $120.00 | L110: $400.00 | M110: =IF(SUM(M2:M109)=SUM(B110:L110),SUM(B110:L110),"XFOOT ERROR!") -> $1,623.00

Sheet $B
B1: Week 1 | C1: Week 2 | D1: Week 3 | E1: Week 4 | F1: Week 5 | G1: Week 6 | H1: Week 7 | I1: Week 8 | J1: Week 9 | K1: Week10 | L1: Division | M1: Total
A2: =FEGL_MASTER!B109 -> Team No. 13 | F2: 10 | G2: 26 | H2: 10 | K2: 10 | M2: =SUM(B2:L2) -> $56.00
A3: =FEGL_MASTER!B110 -> Charlie Lambert | M3: 0
A4: =FEGL_MASTER!B111 -> DeWayne Cox | G4: 2 | M4: $2.00
A5: =FEGL_MASTER!B112 -> Joe Andrews | G5: 2 | I5: 6 | J5: 10 | M5: $18.00
A6: =FEGL_MASTER!B113 -> Dan Longeway | M6: 0
A7: =FEGL_MASTER!B114 -> Cheryl Lambert | J7: 10 | M7: $10.00
A8: =FEGL_MASTER!B115 -> 0 | M8: 0
A9: =FEGL_MASTER!B116 -> 0 | M9: 0
A10: =FEGL_MASTER!B117 -> 0
A11: =FEGL_MASTER!B118 -> Team No. 14 | F11: 10 | H11: 10 | I11: 26 | K11: 10 | M11: $56.00
A12: =FEGL_MASTER!B119 -> Bob Bienski | M12: 0
A13: =FEGL_MASTER!B120 -> James Barkelew | M13: 0
A14: =FEGL_MASTER!B121 -> Wayne Maddox | E14: 6 | I14: 10 | M14: $16.00
A15: =FEGL_MASTER!B122 -> Jack Young | M15: 0
A16: =FEGL_MASTER!B123 -> Jorge Cornejo | M16: 0
A17: =FEGL_MASTER!B124 -> Garnett Andrews | M17: 0
A18: =FEGL_MASTER!B125 -> Jerry Burns | M18: 0
A19: =FEGL_MASTER!B126 -> 0
A20: =FEGL_MASTER!B127 -> Team No. 15 | B20: 26 | D20: 40 | F20: 10 | H20: 10 | J20: 26 | K20: 10 | M20: $122.00
A21: =FEGL_MASTER!B128 -> Dave Utech | B21: 10 | M21: $10.00
A22: =FEGL_MASTER!B129 -> Bill Rater | M22: 0
A23: =FEGL_MASTER!B130 -> Gary Keller | D23: 6 | G23: 10 | M23: $16.00
A24: =FEGL_MASTER!B131 -> James Miller | M24: 0
A25: =FEGL_MASTER!B132 -> Gary Howard | J25: 10 | M25: $10.00
A26: =FEGL_MASTER!B133 -> Kevan Western | M26: 0
A27: =FEGL_MASTER!B134 -> Mark Johnston | M27: 0
A28: =FEGL_MASTER!B135 -> 0
A29: =FEGL_MASTER!B136 -> Team No. 16 | F29: 10 | H29: 10 | K29: 10 | L29: 80 | M29: $110.00
A30: =FEGL_MASTER!B137 -> Ken Wood | M30: 0
A31: =FEGL_MASTER!B138 -> Paul Rowland | M31: 0
A32: =FEGL_MASTER!B139 -> Mike Hester | M32: 0
A33: =FEGL_MASTER!B140 -> Scott Horn | M33: 0
A34: =FEGL_MASTER!B141 -> Kevin Smiley | D34: 1 | I34: 10 | M34: $11.00
A35: =FEGL_MASTER!B142 -> Lance Eddins | M35: 0
A36: =FEGL_MASTER!B143 -> William Renshaw | C36: 10 | M36: $10.00
A37: =FEGL_MASTER!B144 -> 0
A38: =FEGL_MASTER!B145 -> Team No. 17 | B38: 40 | D38: 26 | F38: 10 | H38: 10 | J38: 40 | K38: 10 | L38: 52 | M38: $188.00
A39: =FEGL_MASTER!B146 -> Danny Watson | M39: 0
A40: =FEGL_MASTER!B147 -> Billy Keck | D40: 20 | M40: $20.00
A41: =FEGL_MASTER!B148 -> Scott Conder | M41: 0
A42: =FEGL_MASTER!B149 -> Richard Roye | M42: 0
A43: =FEGL_MASTER!B150 -> Phil Rigdon | I43: 10 | M43: $10.00
A44: =FEGL_MASTER!B151 -> 0 | M44: 0
A45: =FEGL_MASTER!B152 -> 0 | M45: 0
A46: =FEGL_MASTER!B153 -> 0
A47: =FEGL_MASTER!B154 -> Team No. 18 | C47: 26 | F47: 10 | H47: 10 | K47: 10 | M47: $56.00
A48: =FEGL_MASTER!B155 -> Rob Donald | M48: 0
A49: =FEGL_MASTER!B156 -> Steve Shinn | D49: 1 | M49: $1.00
A50: =FEGL_MASTER!B157 -> Eric Gunn | C50: 4 | I50: 1 | M50: $5.00
A51: =FEGL_MASTER!B158 -> John Supra | M51: 0
A52: =FEGL_MASTER!B159 -> Ann Godbey | M52: 0
A53: =FEGL_MASTER!B160 -> Ryan Monroe | M53: 0
A54: =FEGL_MASTER!B161 -> 0 | M54: 0
A55: =FEGL_MASTER!B162 -> 0
A56: =FEGL_MASTER!B163 -> Team No. 19 | E56: 26 | F56: 10 | H56: 10 | K56: 10 | L56: 200 | M56: $256.00
A57: =FEGL_MASTER!B164 -> Ken Fairchild | I57: 1 | M57: $1.00
A58: =FEGL_MASTER!B165 -> Tim Edwards | G58: 10 | M58: =SUM(B58:L58) -> $10.00
A59: =FEGL_MASTER!B166 -> Jerry Burns | M59: 0
A60: =FEGL_MASTER!B167 -> Ranier Woods | I60: 1 | M60: $1.00
A61: =FEGL_MASTER!B168 -> Dale Rostamo | D61: 10 | E61: 20 | M61: $30.00
A62: =FEGL_MASTER!B169 -> James Prescott | M62: 0
A63: =FEGL_MASTER!B170 -> 0 | M63: 0
A64: =FEGL_MASTER!B171 -> 0
A65: =FEGL_MASTER!B172 -> Team No. 20 | C65: 40 | F65: 10 | H65: 10 | K65: 10 | M65: $70.00
A66: =FEGL_MASTER!B173 -> Dennis Weber | M66: 0
A67: =FEGL_MASTER!B174 -> Bill Gault | M67: 0
A68: =FEGL_MASTER!B175 -> Wayne McCleery | M68: 0
A69: =FEGL_MASTER!B176 -> Dan Todd | M69: 0
A70: =FEGL_MASTER!B177 -> Ken McPherson | C70: 14 | M70: $14.00
A71: =FEGL_MASTER!B178 -> Roy Ooten | C71: 10 | M71: $10.00
A72: =FEGL_MASTER!B179 -> Sam Satcher | M72: 0
A73: =FEGL_MASTER!B180 -> 0
A74: =FEGL_MASTER!B181 -> Team No. 21 | F74: 10 | G74: 40 | H74: 10 | I74: 40 | K74: 10 | M74: $110.00
A75: =FEGL_MASTER!B182 -> Jeff Holmlund | M75: 0
A76: =FEGL_MASTER!B183 -> John Miles | M76: 0
A77: =FEGL_MASTER!B184 -> Stephen Taylor | M77: 0
A78: =FEGL_MASTER!B185 -> Kim Autry | M78: 0
A79: =FEGL_MASTER!B186 -> Gerry Norvell | B79: 10 | J79: 10 | M79: $20.00
A80: =FEGL_MASTER!B187 -> Ed Blosch | G80: 6 | I80: 1 | M80: $7.00
A81: =FEGL_MASTER!B188 -> 0 | M81: 0
A82: =FEGL_MASTER!B189 -> 0
A83: =FEGL_MASTER!B190 -> Team No. 22 | E83: 40 | F83: 10 | H83: 10 | K83: 10 | M83: $70.00
A84: =FEGL_MASTER!B191 -> Wes Zwerneman | B84: 10 | E84: 3 | G84: 10 | M84: $23.00
A85: =FEGL_MASTER!B192 -> Bob Eller | D85: 1 | M85: $1.00
A86: =FEGL_MASTER!B193 -> Danny Rodriguez | I86: 1 | M86: $1.00
A87: =FEGL_MASTER!B194 -> Greg Stagg | M87: 0
A88: =FEGL_MASTER!B195 -> John Bessolo | M88: 0
A89: =FEGL_MASTER!B196 -> Mike Brechbuhl | E89: 10 | M89: $10.00
A90: =FEGL_MASTER!B197 -> 0 | M90: 0
A91: =FEGL_MASTER!B198 -> 0
A92: Totals | B92: =SUM(B2:B91) -> $96.00 | C92: =SUM(C2:C91) -> $104.00 | D92: $105.00 | E92: $105.00 | F92: $100.00 | G92: $106.00 | H92: $100.00 | I92: $107.00 | J92: $106.00 | K92: $100.00 | L92: $332.00 | M92: =IF(SUM(M2:M91)=SUM(B92:L92),SUM(B92:L92),"Xfoot Error!") -> $1,361.00

Sheet Schedule
A1: week | D1: 1 | E1: 2 | F1: 3-4 | G1: 5-6 | H1: 7-8 | I1: 9 | K1: 10 | L1: 11 | M1: 12-13 | N1: 14-15 | O1: 16-17 | P1: 18
A3: 1 | C3: 3/29 | D3: 1-2 | E3: 3-4 | F3: 5-6 | G3: 7-8 | H3: 9-10 | I3: 11-12 | K3: 13-14 | L3: 15-16 | M3: 17-18 | N3: 19-20 | O3: 21-22
A5: 2 | C5: 4/5 | D5: 13-15 | E5: 20-21 | F5: 14-16 | G5: 17-19 | H5: 18-22 | K5: 10-12 | L5: 1-3 | M5: 2-4 | N5: 5-7 | O5: 6-8 | P5: 9-11
A7: 3 | C7: 4/12 | D7: 8-11 | E7: 6-10 | F7: 9-12 | G7: 3-7 | H7: 1-4 | I7: 2-5 | K7: 13-16 | L7: 15-21 | M7: 18-20 | N7: 19-22 | O7: 14-17
A9: 4 | C9: 4/19 | D9: 13-17 | E9: 20-22 | F9: 15-19 | G9: 14-18 | H9: 16-21 | K9: 8-10 | L9: 3-9 | M9: 7-11 | N9: 1-5 | O9: 2-6 | P9: 4-12
A11: 5 | C11: 4/26 | D11: 3-8 | E11: 7-10 | F11: 1-6 | G11: 2-12 | H11: 5-9 | I11: 4-11 | K11: 13-18 | L11: 16-22 | M11: 17-21 | N11: 14-19 | O11: 15-20
A13: 6 | C13: 5/3 | D13: 13-19 | E13: 16-17 | F13: 18-21 | G13: 15-22 | H13: 14-20 | K13: 3-12 | L13: 1-7 | M13: 2-8 | N13: 5-10 | O13: 6-11 | P13: 4-9
A15: 7 | C15: 5/10 | D15: 1-8 | E15: 2-9 | F15: 5-11 | G15: 6-12 | H15: 3-10 | I15: 4-7 | K15: 13-20 | L15: 15-17 | M15: 16-18 | N15: 19-22 | O15: 14-21
A17: 8 | C17: 5/17 | D17: 13-21 | E17: 14-22 | F17: 15-18 | G17: 16-19 | H17: 17-20 | K17: 2-10 | L17: 5-12 | M17: 4-8 | N17: 6-7 | O17: 3-11 | P17: 1-9
A19: 9 | C19: 5/24 | D19: 4-5 | E19: 3-6 | F19: 7-9 | G19: 8-12 | H19: 1-10 | I19: 2-11 | K19: 13-22 | L19: 14-15 | M19: 17-21 | N19: 16-20 | O19: 18-19
A21: 10 | C21: 5/31 | D21: 13-14 | E21: 17-22 | F21: 18-20 | G21: 15-16 | H21: 19-21 | K21: 4-6 | L21: 10-11 | M21: 8-9 | N21: 1-12 | O21: 2-7 | P21: 3-5
B24: TM | D24: Captain | G24: Ext. | K24: TM | M24: Captain | P24: Ext.
B25: 1 | D25: =Captains!C3 -> Danny Vrla | G25: =Captains!D3 -> 21990
B26: 2 | D26: =Captains!C4 -> Bill Blackwell | G26: =Captains!D4 -> 300-4915 | K26: 13 | M26: =Captains!C16 -> Charlie Lambert | P26: =Captains!D16 -> 675-7505
B27: 3 | D27: =Captains!C5 -> Craig Treece | G27: =Captains!D5 -> 988-4895 | K27: 14 | M27: =Captains!C17 -> Bob Bienski | P27: =Captains!D17 -> 521-8043
B28: 4 | D28: =Captains!C6 -> Roy Mayes | G28: =Captains!D6 -> 980-5175 | K28: 15 | M28: =Captains!C18 -> Dave Utech | P28: =Captains!D18 -> 53074
B29: 5 | D29: =Captains!C7 -> Carl Jettun | G29: =Captains!D7 -> 76907 | K29: 16 | M29: =Captains!C19 -> Ken Wood | P29: =Captains!D19 -> 987-9538
B30: 6 | D30: =Captains!C8 -> Chris Sell | G30: =Captains!D8 -> 32476 | K30: 17 | M30: =Captains!C20 -> Danny Watson | P30: =Captains!D20 -> 229-7747
B31: 7 | D31: =Captains!C9 -> Mike Kimble | G31: =Captains!D9 -> 797-7889 | K31: 18 | M31: =Captains!C21 -> Rob Donald | P31: =Captains!D21 -> 682-444-6503
B32: 8 | D32: =Captains!C10 -> Dennis McBrayer | G32: =Captains!D10 -> 73500 | K32: 19 | M32: =Captains!C22 -> Ken Fairchild | P32: =Captains!D22 -> 77828
B33: 9 | D33: =Captains!C11 -> David Miley | G33: =Captains!D11 -> 319-6593 | K33: 20 | M33: =Captains!C23 -> Dennis Weber | P33: =Captains!D23 -> 903-9973
B34: 10 | D34: =Captains!C12 -> Frankie Kubenka | G34: =Captains!D12 -> 76021 | K34: 21 | M34: =Captains!C24 -> Jeff Holmlund | P34: =Captains!D24 -> 378-2617
B35: 11 | D35: =Captains!C13 -> David Ayrault | G35: =Captains!D13 -> 23121 | K35: 22 | M35: =Captains!C25 -> Wes Zwerneman | P35: =Captains!D25 -> 228-6901
B36: 12 | D36: =Captains!C14 -> Jason DeLong | G36: =Captains!D14 -> 903-275-9026

Sheet Captains
A1: Division | B1: Team # | C1: Name | D1: Phone | E1: Paid | F1: Quota avg
F2: start
A3: A | B3: 1 | C3: =FEGL_MASTER!B2 -> Danny Vrla | D3: =FEGL_MASTER!D2 -> 21990 | E3: $140 | F3: =FEGL_MASTER!C9 -> 20.8
A4: A | B4: 2 | C4: =FEGL_MASTER!B11 -> Bill Blackwell | D4: =FEGL_MASTER!D11 -> 300-4915 | E4: $140 | F4: =FEGL_MASTER!C18 -> 21.7
A5: A | B5: 3 | C5: =FEGL_MASTER!B20 -> Craig Treece | D5: =FEGL_MASTER!D20 -> 988-4895 | E5: $140 | F5: =FEGL_MASTER!C27 -> 19.6
A6: A | B6: 4 | C6: =FEGL_MASTER!B29 -> Roy Mayes | D6: =FEGL_MASTER!D29 -> 980-5175 | E6: $140 | F6: =FEGL_MASTER!C36 -> 18.2
A7: A | B7: 5 | C7: =FEGL_MASTER!B38 -> Carl Jettun | D7: =FEGL_MASTER!D38 -> 76907 | E7: $140 | F7: =FEGL_MASTER!C45 -> 18.7
A8: A | B8: 6 | C8: =FEGL_MASTER!B47 -> Chris Sell | D8: =FEGL_MASTER!D47 -> 32476 | E8: $140 | F8: =FEGL_MASTER!C54 -> 17.2
A9: A | B9: 7 | C9: =FEGL_MASTER!B56 -> Mike Kimble | D9: =FEGL_MASTER!D56 -> 797-7889 | E9: $140 | F9: =FEGL_MASTER!C63 -> 19.2
A10: A | B10: 8 | C10: =FEGL_MASTER!B65 -> Dennis McBrayer | D10: =FEGL_MASTER!D65 -> 73500 | E10: $140 | F10: =FEGL_MASTER!C72 -> 19.4
A11: A | B11: 9 | C11: =FEGL_MASTER!B74 -> David Miley | D11: =FEGL_MASTER!D74 -> 319-6593 | E11: $140 | F11: =FEGL_MASTER!C81 -> 14.8
A12: A | B12: 10 | C12: =FEGL_MASTER!B83 -> Frankie Kubenka | D12: =FEGL_MASTER!D83 -> 76021 | E12: $140 | F12: =FEGL_MASTER!C90 -> 
A13: A | B13: 11 | C13: =FEGL_MASTER!B92 -> David Ayrault | D13: =FEGL_MASTER!D92 -> 23121 | E13: $140 | F13: =FEGL_MASTER!C99 -> 
A14: A | B14: 12 | C14: =FEGL_MASTER!B101 -> Jason DeLong | D14: =FEGL_MASTER!D101 -> 903-275-9026 | E14: $140 | F14: =FEGL_MASTER!C108 -> 19.8
A16: B | B16: 13 | C16: =FEGL_MASTER!B110 -> Charlie Lambert | D16: =FEGL_MASTER!D110 -> 675-7505 | E16: $140 | F16: =FEGL_MASTER!C117 -> 15.0
A17: B | B17: 14 | C17: =FEGL_MASTER!B119 -> Bob Bienski | D17: =FEGL_MASTER!D119 -> 521-8043 | E17: $140 | F17: =FEGL_MASTER!C126 -> 14.7
A18: B | B18: 15 | C18: =FEGL_MASTER!B128 -> Dave Utech | D18: =FEGL_MASTER!D128 -> 53074 | E18: $140 | F18: =FEGL_MASTER!C135 -> 15.4
A19: B | B19: 16 | C19: =FEGL_MASTER!B137 -> Ken Wood | D19: =FEGL_MASTER!D137 -> 987-9538 | E19: $140 | F19: =FEGL_MASTER!C144 -> 16.0
A20: B | B20: 17 | C20: =FEGL_MASTER!B146 -> Danny Watson | D20: =FEGL_MASTER!D146 -> 229-7747 | E20: $140 | F20: =FEGL_MASTER!C153 -> 15.0
A21: B | B21: 18 | C21: =FEGL_MASTER!B155 -> Rob Donald | D21: =FEGL_MASTER!D155 -> 682-444-6503 | E21: $140 | F21: =FEGL_MASTER!C162 -> 12.5
A22: B | B22: 19 | C22: =FEGL_MASTER!B164 -> Ken Fairchild | D22: =FEGL_MASTER!D164 -> 77828 | E22: $140 | F22: =FEGL_MASTER!C171 -> 13.3
A23: B | B23: 20 | C23: =FEGL_MASTER!B173 -> Dennis Weber | D23: =FEGL_MASTER!D173 -> 903-9973 | E23: $140 | F23: =FEGL_MASTER!C180 -> 12.9
A24: B | B24: 21 | C24: =FEGL_MASTER!B182 -> Jeff Holmlund | D24: =FEGL_MASTER!D182 -> 378-2617 | E24: $140 | F24: =FEGL_MASTER!C189 -> 14.5
A25: B | B25: 22 | C25: =FEGL_MASTER!B191 -> Wes Zwerneman | D25: =FEGL_MASTER!D191 -> 228-6901 | E25: $140 | F25: =FEGL_MASTER!C198 -> 14.2

Sheet Quota
A1: 18 Hole | C1: 9 Hole
A2: 0 | B2: 71 | C2: 0 | D2: 25
A3: 1 | B3: 72 | C3: 1 | D3: 25
A4: 2 | B4: 73 | C4: 1 | D4: 25
A5: 3 | B5: 74 | C5: 2 | D5: 25
A6: 4 | B6: 75 | C6: 2 | D6: 25
A7: 5 | B7: 76 | C7: 3 | D7: 24
A8: 6 | B8: 77 | C8: 3 | D8: 24
A9: 7 | B9: 78 | C9: 4 | D9: 23
A10: 8 | B10: 79 | C10: 4 | D10: 23
A11: 9 | B11: 80 | C11: 5 | D11: 22
A12: 10 | B12: 81 | C12: 5 | D12: 22
A13: 11 | B13: 82 | C13: 6 | D13: 21
A14: 12 | B14: 83 | C14: 6 | D14: 21
A15: 13 | B15: 84 | C15: 7 | D15: 20
A16: 14 | B16: 85 | C16: 7 | D16: 20
A17: 15 | B17: 86 | C17: 8 | D17: 19
A18: 16 | B18: 87 | C18: 8 | D18: 19
A19: 17 | B19: 88 | C19: 9 | D19: 18
A20: 18 | B20: 89 | C20: 9 | D20: 18
A21: 19 | B21: 90 | C21: 10 | D21: 17
A22: 20 | B22: 91 | C22: 10 | D22: 17
A23: 21 | B23: 92 | C23: 11 | D23: 16
A24: 22 | B24: 93 | C24: 11 | D24: 16
A25: 23 | B25: 94 | C25: 12 | D25: 15
A26: 24 | B26: 95 | C26: 12 | D26: 15
A27: 25 | B27: 96 | C27: 13 | D27: 14
A28: 26 | B28: 97 | C28: 13 | D28: 14
A29: 27 | B29: 98 | C29: 14 | D29: 13
A30: 28 | B30: 99 | C30: 14 | D30: 13
A31: 29 | B31: 100 | C31: 15 | D31: 12
A32: 30 | B32: 101 | C32: 15 | D32: 12
A33: 31 | B33: 102 | C33: 16 | D33: 11
A34: 32 | B34: 103 | C34: 16 | D34: 11
A35: 33 | B35: 104 | D35: 10
A36: 34 | B36: 105 | D36: 10
A37: 35 | B37: 106 | D37: 9
A38: 36 | B38: 107 | D38: 9
A39: 37 | B39: 108
A40: 38 | B40: 109
A41: 39 | B41: 110
A89: 298
A90: 18
A91: 42
A92: 50
A93: 26.25
A94: 42
A95: =7*105 -> 735
A96: =SUM(A89:A95) -> 1211.25

Sheet $Out
A1: Division | B1: Team # | C1: Captain | D1: $ Won | E1: Paid by Signature
A3: A | B3: 1 | C3: =FEGL_MASTER!B2 -> Danny Vrla | D3: =SUM('$A'!M2:M9) -> $137.00
A4: A | B4: 2 | C4: =FEGL_MASTER!B11 -> Bill Blackwell | D4: =SUM('$A'!M11:M18) -> $40.00
A5: A | B5: 3 | C5: =FEGL_MASTER!B20 -> Craig Treece | D5: =SUM('$A'!M20:M27) -> $62.00
A6: A | B6: 4 | C6: =FEGL_MASTER!B29 -> Roy Mayes | D6: =SUM('$A'!M29:M36) -> $71.00
A7: A | B7: 5 | C7: =FEGL_MASTER!B38 -> Carl Jettun | D7: =SUM('$A'!M38:M45) -> $124.00
A8: A | B8: 6 | C8: =FEGL_MASTER!B47 -> Chris Sell | D8: =SUM('$A'!M47:M54) -> $85.00
A9: A | B9: 7 | C9: =FEGL_MASTER!B56 -> Mike Kimble | D9: =SUM('$A'!M56:M63) -> $165.00
A10: A | B10: 8 | C10: =FEGL_MASTER!B65 -> Dennis McBrayer | D10: =SUM('$A'!M65:M72) -> $44.00
A11: A | B11: 9 | C11: =FEGL_MASTER!B74 -> David Miley | D11: =SUM('$A'!M74:M81) -> $172.00
A12: A | B12: 10 | C12: =FEGL_MASTER!B83 -> Frankie Kubenka | D12: =SUM('$A'!M83:M90) -> $248.00
A13: A | B13: 11 | C13: =FEGL_MASTER!B92 -> David Ayrault | D13: =SUM('$A'!M92:M99) -> $362.00
A14: A | B14: 12 | C14: =FEGL_MASTER!B101 -> Jason DeLong | D14: =SUM('$A'!M101:M108) -> $113.00
A16: B | B16: 13 | C16: =FEGL_MASTER!B110 -> Charlie Lambert | D16: =SUM('$B'!M2:M9) -> $86.00
A17: B | B17: 14 | C17: =FEGL_MASTER!B119 -> Bob Bienski | D17: =SUM('$B'!M11:M18) -> $72.00
A18: B | B18: 15 | C18: =FEGL_MASTER!B128 -> Dave Utech | D18: =SUM('$B'!M20:M27) -> $158.00
A19: B | B19: 16 | C19: =FEGL_MASTER!B137 -> Ken Wood | D19: =SUM('$B'!M29:M36) -> $131.00
A20: B | B20: 17 | C20: =FEGL_MASTER!B146 -> Danny Watson | D20: =SUM('$B'!M38:M45) -> $218.00
A21: B | B21: 18 | C21: =FEGL_MASTER!B155 -> Rob Donald | D21: =SUM('$B'!M47:M54) -> $62.00
A22: B | B22: 19 | C22: =FEGL_MASTER!B164 -> Ken Fairchild | D22: =SUM('$B'!M56:M63) -> $298.00
A23: B | B23: 20 | C23: =FEGL_MASTER!B173 -> Dennis Weber | D23: =SUM('$B'!M65:M72) -> $94.00
A24: B | B24: 21 | C24: =FEGL_MASTER!B182 -> Jeff Holmlund | D24: =SUM('$B'!M74:M81) -> $137.00
A25: B | B25: 22 | C25: =FEGL_MASTER!B191 -> Wes Zwerneman | D25: =SUM('$B'!M83:M90) -> $105.00

Sheet Sheet1
